{"text_format":"1","workbook":"xlsx","n_sheets":71,"sheets":["Startoberfläche","Kundenaufträge","Kundenaufträge_Menge_positiv","Kundenaufträge_Menge_negativ","Kundenaufträge_Anzahl_positiv","Kundenaufträge_Anzahl_negativ","Produktdaten","Produktionsdaten","Rollierend_MTS_positiv","Rollierend_MTS_negativ","Rollierend_vor_KEP_positiv","Rollierend_vor_KEP_negativ","Rollierend_nach_KEP_positiv","Rollierend_nach_KEP_negativ","Rollierend_MTO_positiv","Rollierend_MTO_negativ","Rollierend_MTS","Rollierend_vor_KEP","Rollierend_nach_KEP","Rollierend_MTO","Rollierend","Rollierend_positiv","Rollierend_negativ","Rollierend_RUS_positiv","Rollierend_RUS_negativ","Rollierend_Wochen","Rollierend_Monate","Rollierend_Quartale","Aufträge_Tage","Aufträge_Wochen","Aufträge_Monate","Aufträge_Quartale","Aufträge_positiv","Aufträge_negativ","Zwischenberechnungen","Zwischenberechnungen_positiv","Zwischenberechnungen_negativ","Eingrenzung","Eingrenzung_positiv","Eingrenzung_negativ","Termineinhaltung","Termineinhaltung_positiv","Termineinhaltung_negativ","Servicegrad","Servicegrad_positiv","Servicegrad_negativ","Klassifizierung","Klassifizierung_positiv","Klassifizierung_negativ","Kostenvergleich","Kostenvergleich_positiv","Kostenvergleich_negativ","Belastungsflexibilität","Auswertung_BelaFlex","Rollierend_gewichtet","Zwischenspeicher","Ergebnisdarstellung","Rohmateriallager","Halbfabrikatslager","Fertigwarenlager","Versandlager","Bestandsauswertung","Produktauswertung","Gesamtauswertung","Ergebnis_Belastungsflexibilität","Ergebnis_ABC_Analyse","Ergebnis_RUS_Analyse","Ergebnis_XYZ_Analyse","Ergebnis_UVW_Analyse","Ergebnis_Losgrößenberechnung","Pivots"],"not_rendered":{"charts":16,"images":3,"macros":1,"external_links":0,"defined_names":55,"comments":0,"pivot_tables":8},"unopened":[],"bounds":{"document_bytes":16777216,"sheet_cells":100000,"rows_first":2000,"rows_last":500,"rows_between":2000,"halvings":0,"cell_chars":16384,"cell_head_chars":4096},"cells_cut":0,"cells_raw":0,"read":"whole","date_system":"1900"}

{"sheet":"Startoberfläche","index":0,"n_rows":0,"n_cols":0,"rows_kept":0,"cut":false,"hidden":false,"merged":[]}

{"sheet":"Kundenaufträge","index":1,"n_rows":1,"n_cols":3,"rows_kept":1,"cut":false,"hidden":false,"merged":[]}
["Datum","Produkt","Menge"]

{"sheet":"Kundenaufträge_Menge_positiv","index":2,"n_rows":1,"n_cols":3,"rows_kept":1,"cut":false,"hidden":true,"merged":[]}
["Datum","Produkt","Menge"]

{"sheet":"Kundenaufträge_Menge_negativ","index":3,"n_rows":1,"n_cols":3,"rows_kept":1,"cut":false,"hidden":true,"merged":[]}
["Datum","Produkt","Menge"]

{"sheet":"Kundenaufträge_Anzahl_positiv","index":4,"n_rows":1,"n_cols":3,"rows_kept":1,"cut":false,"hidden":true,"merged":[]}
["Datum","Produkt","Menge"]

{"sheet":"Kundenaufträge_Anzahl_negativ","index":5,"n_rows":1,"n_cols":3,"rows_kept":1,"cut":false,"hidden":true,"merged":[]}
["Datum","Produkt","Menge"]

{"sheet":"Produktdaten","index":6,"n_rows":1,"n_cols":49,"rows_kept":1,"cut":false,"hidden":false,"merged":[]}
["Produkt","Aktuelle Auftragsabwicklungsstrategie","Feste Auftragsabwicklungsstrategie","Ausschluss einer Auftragsabwickluingsstrategie","Anlauf","Auslauf","Kundenwunschlieferzeit","Einheit","Rohmaterialwert [€]","Herstellkosten [€]","Verkaufspreis [€]","Losgröße","Prozessbedingte Losgröße","Maximale Lagerverweildauer ","Einheit","Wagnis Endprodukt","Strafe Lieferverzug [€/Tag und Stück]","Funktiongleichung Lieferverzug","Zugehöriger Funktionswert (Exponent oder Multiplikator)","ABC Klassifizierung","RUS Klassifizierung","XYZ Klassifizierung","UVW Klassifzirung","Eigene Klassifizierung","Zugang Rohmaterial [Stück/Bestellung]","Wiederbeschaffungszeit Rohmaterial","Einheit","Maximale negative Lieferterminabweichung Rohmaterial ","Einheit","Maximale positive Lieferterminabweichung Rohmaterial","Einheit","Mittlere Lieferterminabweichung Rohmaterial","Einheit","Standardabweichung Liefertermin Rohmaterial","Einheit","Maximale negative Liefermengenabweichung Rohmaterial [Stück]","Maximale positive Liefermengenabweichung Rohmaterial [Stück]","Mittlerer Rohmaterialbestand [Stück]","Sicherheitsbestand Rohmaterial [Stück]","Mittlerer Halbfabrikatsbestand [Stück]","Sicherheitsbestand Halbfabrikate [Stück]","Mittlerer Fertigwarenbestand [Stück]","Sicherheitsbestand Fertigwaren [Stück]","Mittlerer Bestand Versandlager [Stück]","Benötige Lagerfläche [m2]","Zusätzlicher Steuerungsaufwand ATO","Einheit","Zusätzlicher Steuerungsaufwand MTO","Einheit"]

{"sheet":"Produktionsdaten","index":7,"n_rows":3,"n_cols":120,"rows_kept":3,"cut":false,"hidden":false,"merged":[]}
["Produkt","Auftragsbearbeitung",null,"Produktionsstufe 1",null,null,null,null,null,null,null,null,null,null,null,null,null,null,null,null,null,null,null,null,null,null,"Produktionsstufe 2",null,null,null,null,null,null,null,null,null,null,null,null,null,null,null,null,null,null,null,null,null,null,"Produktionsstufe 3",null,null,null,null,null,null,null,null,null,null,null,null,null,null,null,null,null,null,null,null,null,null,"Produktionsstufe 4",null,null,null,null,null,null,null,null,null,null,null,null,null,null,null,null,null,null,null,null,null,null,"Produktionsstufe 5",null,null,null,null,null,null,null,null,null,null,null,null,null,null,null,null,null,null,null,null,null,null,"Versandabwicklung"]
[null,null,null,"Vorgabezeiten",null,null,null,null,null,null,null,null,null,"Terminabweichung",null,null,null,null,null,null,null,"Mengen [Stück]",null,null,null,"Kosten","Vorgabezeiten",null,null,null,null,null,null,null,null,null,"Terminabweichung",null,null,null,null,null,null,null,"Mengen [Stück]",null,null,null,"Kosten","Vorgabezeiten",null,null,null,null,null,null,null,null,null,"Terminabweichung",null,null,null,null,null,null,null,"Mengen [Stück]",null,null,null,"Kosten","Vorgabezeiten",null,null,null,null,null,null,null,null,null,"Terminabweichung",null,null,null,null,null,null,null,"Mengen [Stück]",null,null,null,"Kosten","Vorgabezeiten",null,null,null,null,null,null,null,null,null,"Terminabweichung",null,null,null,null,null,null,null,"Mengen [Stück]",null,null,null,"Kosten"]
[null,"Bearbeitungszeit","Einheit","Transportzeit","Einheit","Liegzeit vor Bearbeitung","Einheit","Rüstzeit","Einheit","Bearbeitungszeit","Einheit","Liegzeit nach Bearbeitung","Einheit","Maximale negative Terminabweichung","Einheit","Maximale positive Terminabweichung","Einheit","Mittlere Terminabweichung","Einheit","Standardabweichung Termin","Einheit","Maximale negative Mengenabweichung","Maximale positive Mengenabweichung","Mindestlosgröße","Rundungswert ","Rüstkosten","Transportzeit","Einheit","Liegzeit vor Bearbeitung","Einheit","Rüstzeit","Einheit","Bearbeitungszeit","Einheit","Liegzeit nach Bearbeitung","Einheit","Maximale negative Terminabweichung","Einheit","Maximale positive Terminabweichung","Einheit","Mittlere Terminabweichung","Einheit","Standardabweichung Termin","Einheit","Maximale negative Mengenabweichung","Maximale positive Mengenabweichung","Mindestlosgröße","Rundungswert","Rüstkosten","Transportzeit","Einheit","Liegzeit vor Bearbeitung","Einheit","Rüstzeit","Einheit","Bearbeitungszeit","Einheit","Liegzeit nach Bearbeitung","Einheit","Maximale negative Terminabweichung","Einheit","Maximale positive Terminabweichung","Einheit","Mittlere Terminabweichung","Einheit","Standardabweichung Termin","Einheit","Maximale negative Mengenabweichung","Maximale positive Mengenabweichung","Mindestlosgröße","Rundungswert ","Rüstkosten","Transportzeit","Einheit","Liegzeit vor Bearbeitung","Einheit","Rüstzeit","Einheit","Bearbeitungszeit","Einheit","Liegzeit nach Bearbeitung","Einheit","Maximale negative Terminabweichung","Einheit","Maximale positive Terminabweichung","Einheit","Mittlere Terminabweichung","Einheit","Standardabweichung Termin","Einheit","Maximale negative Mengenabweichung","Maximale positive Mengenabweichung","Mindestlosgröße","Rundungswert","Rüstkosten","Transportzeit","Einheit","Liegzeit vor Bearbeitung","Einheit","Rüstzeit","Einheit","Bearbeitungszeit","Einheit","Liegzeit nach Bearbeitung","Einheit","Maximale negative Terminabweichung","Einheit","Maximale positive Terminabweichung","Einheit","Mittlere Terminabweichung","Einheit","Standardabweichung Termin","Einheit","Maximale negative Mengenabweichung","Maximale positive Mengenabweichung","Mindestlosgröße","Rundungswert","Rüstkosten","Bearbeitungszeit","Einheit"]

{"sheet":"Rollierend_MTS_positiv","index":8,"n_rows":1,"n_cols":1,"rows_kept":1,"cut":false,"hidden":true,"merged":[]}
["Produkt/Datum"]

{"sheet":"Rollierend_MTS_negativ","index":9,"n_rows":1,"n_cols":1,"rows_kept":1,"cut":false,"hidden":true,"merged":[]}
["Produkt/Datum"]

{"sheet":"Rollierend_vor_KEP_positiv","index":10,"n_rows":1,"n_cols":1,"rows_kept":1,"cut":false,"hidden":true,"merged":[]}
["Produkt/Datum"]

{"sheet":"Rollierend_vor_KEP_negativ","index":11,"n_rows":1,"n_cols":1,"rows_kept":1,"cut":false,"hidden":true,"merged":[]}
["Produkt/Datum"]

{"sheet":"Rollierend_nach_KEP_positiv","index":12,"n_rows":1,"n_cols":1,"rows_kept":1,"cut":false,"hidden":true,"merged":[]}
["Produkt/Datum"]

{"sheet":"Rollierend_nach_KEP_negativ","index":13,"n_rows":1,"n_cols":1,"rows_kept":1,"cut":false,"hidden":true,"merged":[]}
["Produkt/Datum"]

{"sheet":"Rollierend_MTO_positiv","index":14,"n_rows":1,"n_cols":1,"rows_kept":1,"cut":false,"hidden":true,"merged":[]}
["Produkt/Datum"]

{"sheet":"Rollierend_MTO_negativ","index":15,"n_rows":1,"n_cols":1,"rows_kept":1,"cut":false,"hidden":true,"merged":[]}
["Produkt/Datum"]

{"sheet":"Rollierend_MTS","index":16,"n_rows":1,"n_cols":1,"rows_kept":1,"cut":false,"hidden":true,"merged":[]}
["Produkt/Datum"]

{"sheet":"Rollierend_vor_KEP","index":17,"n_rows":1,"n_cols":1,"rows_kept":1,"cut":false,"hidden":true,"merged":[]}
["Produkt/Datum"]

{"sheet":"Rollierend_nach_KEP","index":18,"n_rows":1,"n_cols":1,"rows_kept":1,"cut":false,"hidden":true,"merged":[]}
["Produkt/Datum"]

{"sheet":"Rollierend_MTO","index":19,"n_rows":1,"n_cols":1,"rows_kept":1,"cut":false,"hidden":true,"merged":[]}
["Produkt/Datum"]

{"sheet":"Rollierend","index":20,"n_rows":1,"n_cols":1,"rows_kept":1,"cut":false,"hidden":true,"merged":[]}
["Produkt/Datum"]

{"sheet":"Rollierend_positiv","index":21,"n_rows":1,"n_cols":1,"rows_kept":1,"cut":false,"hidden":true,"merged":[]}
["Produkt/Datum"]

{"sheet":"Rollierend_negativ","index":22,"n_rows":1,"n_cols":1,"rows_kept":1,"cut":false,"hidden":true,"merged":[]}
["Produkt/Datum"]

{"sheet":"Rollierend_RUS_positiv","index":23,"n_rows":1,"n_cols":1,"rows_kept":1,"cut":false,"hidden":true,"merged":[]}
["Produkt/Woche"]

{"sheet":"Rollierend_RUS_negativ","index":24,"n_rows":1,"n_cols":1,"rows_kept":1,"cut":false,"hidden":true,"merged":[]}
["Produkt/Woche"]

{"sheet":"Rollierend_Wochen","index":25,"n_rows":1,"n_cols":1,"rows_kept":1,"cut":false,"hidden":true,"merged":[]}
["Produkt/Woche"]

{"sheet":"Rollierend_Monate","index":26,"n_rows":1,"n_cols":1,"rows_kept":1,"cut":false,"hidden":true,"merged":[]}
["Produkt/Monat"]

{"sheet":"Rollierend_Quartale","index":27,"n_rows":1,"n_cols":1,"rows_kept":1,"cut":false,"hidden":true,"merged":[]}
["Produkt/Quartale"]

{"sheet":"Aufträge_Tage","index":28,"n_rows":1,"n_cols":1,"rows_kept":1,"cut":false,"hidden":true,"merged":[]}
["Produkt/Datum"]

{"sheet":"Aufträge_Wochen","index":29,"n_rows":1,"n_cols":1,"rows_kept":1,"cut":false,"hidden":true,"merged":[]}
["Produkt/Woche"]

{"sheet":"Aufträge_Monate","index":30,"n_rows":1,"n_cols":1,"rows_kept":1,"cut":false,"hidden":true,"merged":[]}
["Produkt/Monat"]

{"sheet":"Aufträge_Quartale","index":31,"n_rows":1,"n_cols":1,"rows_kept":1,"cut":false,"hidden":true,"merged":[]}
["Produkt/Quartale"]

{"sheet":"Aufträge_positiv","index":32,"n_rows":1,"n_cols":1,"rows_kept":1,"cut":false,"hidden":true,"merged":[]}
["Produkt/Woche"]

{"sheet":"Aufträge_negativ","index":33,"n_rows":1,"n_cols":1,"rows_kept":1,"cut":false,"hidden":true,"merged":[]}
["Produkt/Woche"]

{"sheet":"Zwischenberechnungen","index":34,"n_rows":2,"n_cols":65,"rows_kept":2,"cut":false,"hidden":true,"merged":[[0,5,1,5],[0,6,1,6],[0,7,1,7],[0,16,0,20],[0,42,0,46],[0,21,0,25],[0,0,1,0],[0,1,1,1],[0,2,1,2],[0,3,1,3],[0,4,1,4],[0,47,0,51],[0,8,0,15],[0,26,0,33],[0,34,0,41],[0,59,0,64],[0,56,0,58],[0,52,0,55]]}
["Produkt","Bedarfsmenge","Zeit WE","Zeit WA","Rohmaterialwert","Herstellkosten","Hinterlegte Losgröße","Prozessbedingte Losgröße","Kein KEP",null,null,null,null,null,null,null,"MTS",null,null,null,null,"MTO",null,null,null,null,"vor KEP",null,null,null,null,null,null,null,"nach KEP",null,null,null,null,null,null,null,"ATO vor KEP",null,null,null,null,"ATO nach KEP",null,null,null,null,"Rüstkosten",null,null,null,"Übergangszeit",null,null,"Zusätzlicher Steuerungsaufwand"]
[null,null,null,null,null,null,null,null,"Transportzeit","Liegezeit vor Bearbeitung","Rüstzeit","Bearbeitungszeit","Liegezeit nach Bearbeitung","Rüstkosten","Mindestlosgröße","Rundungswert (Ladungsträger)","Berechnete Losgröße","Finale Losgröße","Durchführungzeit","Übergangszeit","Durchlaufzeit","Berechnete mittlere Bestellmenge","Finale Losgröße","Durchführungzeit","Übergangszeit","Durchlaufzeit","Transportzeit","Liegezeit vor Bearbeitung","Rüstzeit","Bearbeitungszeit","Liegezeit nach Bearbeitung","Rüstkosten","Mindestlosgröße","Rundungswert (Ladungsträger)","Transportzeit","Liegezeit vor Bearbeitung","Rüstzeit","Bearbeitungszeit","Liegezeit nach Bearbeitung","Rüstkosten","Mindestlosgröße","Rundungswert (Ladungsträger)","Berechnete Losgröße","Finale Losgröße","Durchführungzeit","Übergangszeit","Durchlaufzeit","Berechnete mittlere Bestellmenge","Finale Losgröße","Durchführungzeit","Übergangszeit","Durchlaufzeit","MTS","MTO","ATO vor","ATO nach","Anteil","Sortierung","Rang","ATO Zeit","ATO Einheit","ATO Kosten","MTO Zeit","MTO Einheit","MTO Kosten"]

{"sheet":"Zwischenberechnungen_positiv","index":35,"n_rows":2,"n_cols":65,"rows_kept":2,"cut":false,"hidden":true,"merged":[[0,26,0,33],[0,5,1,5],[0,0,1,0],[0,1,1,1],[0,2,1,2],[0,3,1,3],[0,4,1,4],[0,6,1,6],[0,7,1,7],[0,8,0,15],[0,16,0,20],[0,22,0,25],[0,59,0,64],[0,34,0,41],[0,42,0,46],[0,47,0,51],[0,52,0,55]]}
["Produkt","Bedarfsmenge","Zeit WE","Zeit WA","Rohmaterialwert","Herstellkosten","Hinterlegte Losgröße","Prozessbedingte Losgröße","Kein KEP",null,null,null,null,null,null,null,"MTS",null,null,null,null,null,"MTO",null,null,null,"vor KEP",null,null,null,null,null,null,null,"nach KEP",null,null,null,null,null,null,null,"ATO vor KEP",null,null,null,null,"ATO nach KEP",null,null,null,null,"Rüstkosten",null,null,null,null,null,null,"Zusätzlicher Steuerungsaufwand"]
[null,null,null,null,null,null,null,null,"Transportzeit","Liegezeit vor Bearbeitung","Rüstzeit","Bearbeitungszeit","Liegezeit nach Bearbeitung","Rüstkosten","Mindestlosgröße","Rundungswert (Ladungsträger)","Berechnete Losgröße","Finale Losgröße","Durchführungzeit","Übergangszeit","Durchlaufzeit","Berechnete mittlere Bestellmenge","Finale Losgröße","Durchführungzeit","Übergangszeit","Durchlaufzeit","Transportzeit","Liegezeit vor Bearbeitung","Rüstzeit","Bearbeitungszeit","Liegezeit nach Bearbeitung","Rüstkosten","Mindestlosgröße","Rundungswert (Ladungsträger)","Transportzeit","Liegezeit vor Bearbeitung","Rüstzeit","Bearbeitungszeit","Liegezeit nach Bearbeitung","Rüstkosten","Mindestlosgröße","Rundungswert (Ladungsträger)","Berechnete Losgröße","Finale Losgröße","Durchführungzeit","Übergangszeit","Durchlaufzeit","Berechnete mittlere Bestellmenge","Finale Losgröße","Durchführungzeit","Übergangszeit","Durchlaufzeit","MTS","MTO","ATO vor","ATO nach",null,null,null,"ATO Zeit","ATO Einheit","ATO Kosten","MTO Zeit","MTO Einheit","MTO Kosten"]

{"sheet":"Zwischenberechnungen_negativ","index":36,"n_rows":2,"n_cols":65,"rows_kept":2,"cut":false,"hidden":true,"merged":[[0,26,0,33],[0,5,1,5],[0,0,1,0],[0,1,1,1],[0,2,1,2],[0,3,1,3],[0,4,1,4],[0,6,1,6],[0,7,1,7],[0,8,0,15],[0,16,0,20],[0,22,0,25],[0,59,0,64],[0,34,0,41],[0,42,0,46],[0,47,0,51],[0,52,0,55]]}
["Produkt","Bedarfsmenge","Zeit WE","Zeit WA","Rohmaterialwert","Herstellkosten","Hinterlegte Losgröße","Prozessbedingte Losgröße","Kein KEP",null,null,null,null,null,null,null,"MTS",null,null,null,null,null,"MTO",null,null,null,"vor KEP",null,null,null,null,null,null,null,"nach KEP",null,null,null,null,null,null,null,"ATO vor KEP",null,null,null,null,"ATO nach KEP",null,null,null,null,"Rüstkosten",null,null,null,null,null,null,"Zusätzlicher Steuerungsaufwand"]
[null,null,null,null,null,null,null,null,"Transportzeit","Liegezeit vor Bearbeitung","Rüstzeit","Bearbeitungszeit","Liegezeit nach Bearbeitung","Rüstkosten","Mindestlosgröße","Rundungswert (Ladungsträger)","Berechnete Losgröße","Finale Losgröße","Durchführungzeit","Übergangszeit","Durchlaufzeit","Berechnete mittlere Bestellmenge","Finale Losgröße","Durchführungzeit","Übergangszeit","Durchlaufzeit","Transportzeit","Liegezeit vor Bearbeitung","Rüstzeit","Bearbeitungszeit","Liegezeit nach Bearbeitung","Rüstkosten","Mindestlosgröße","Rundungswert (Ladungsträger)","Transportzeit","Liegezeit vor Bearbeitung","Rüstzeit","Bearbeitungszeit","Liegezeit nach Bearbeitung","Rüstkosten","Mindestlosgröße","Rundungswert (Ladungsträger)","Berechnete Losgröße","Finale Losgröße","Durchführungzeit","Übergangszeit","Durchlaufzeit","Berechnete mittlere Bestellmenge","Finale Losgröße","Durchführungzeit","Übergangszeit","Durchlaufzeit","MTS","MTO","ATO vor","ATO nach",null,null,null,"ATO Zeit","ATO Einheit","ATO Kosten","MTO Zeit","MTO Einheit","MTO Kosten"]

{"sheet":"Eingrenzung","index":37,"n_rows":2,"n_cols":162,"rows_kept":2,"cut":false,"hidden":true,"merged":[[0,158,0,161],[0,55,0,71],[0,72,0,86],[0,47,0,54],[0,0,1,0],[0,20,0,21],[0,11,0,19],[0,2,0,10],[0,1,1,1],[0,22,0,23],[0,24,0,26],[0,41,0,46],[0,33,0,40],[0,27,0,32],[0,155,0,157],[0,132,0,137],[0,152,0,154],[0,138,0,144],[0,145,0,148],[0,87,0,101],[0,102,0,116],[0,117,0,131],[0,149,0,151]]}
["Produkt","Kundenwunschlieferzeit [Tage]","Lieferzeitprüfung MTO",null,null,null,null,null,null,null,null,"Lieferzeitprüfung ATO",null,null,null,null,null,null,null,null,"Bestellmenge",null,"Wagnis",null,"Herstellkosten",null,null,"MTO Kosten und Zeiten mit Sicherheitszeit",null,null,null,null,null,"MTO Kosten und Zeiten reduzierte Sicherheitszeit",null,null,null,null,null,null,null,"ATO Kosten und Zeiten mit Sicherheitszeit",null,null,null,null,null,"ATO Kosten und Zeiten reduzierte Sicherheitszeit",null,null,null,null,null,null,null,"Lagerverweildauerprüfung Fertigwarenlager MTS",null,null,null,null,null,null,null,null,null,null,null,null,null,null,null,null," Halbfabriktslager",null,null,null,null,null,null,null,null,null,null,null,null,null,null,"Rohmateriallager MTS",null,null,null,null,null,null,null,null,null,null,null,null,null,null,"Rohmateriallager ATO",null,null,null,null,null,null,null,null,null,null,null,null,null,null," Rohmateriallager MTO",null,null,null,null,null,null,null,null,null,null,null,null,null,null,"FWL MTS Kosten und Zeiten mit Wunschservicegrad",null,null,null,null,null,"FWL MTS Kosten und Zeiten mit Einhaltung maximale Lagerverweildauer",null,null,null,null,null,null,"HFL ATO Kosten und Zeiten ",null,null,null,"RML MTS Kosten",null,null,"RML ATO Kosten",null,null,"RML MTO Kosten",null,null,"Benötige Lagerfläche"]
[null,null,"Durchlaufzeit MTO","Maximale negative Terminabweichung","Maximale positive Terminabweichung","Mittlere Terinabweichung","Standardabweichug Termineinhaltung","Gewünschte Termineinhaltung","Notwendige Sicherheitszeit","Lieferzeit","MTO möglich?","Durchlaufzeit ATO nach KEP","Maximale negative Terminabweichung","Maximale positiveTerminabweichung","Mittlere Terminabweichung","Standardabweichug Termineinhaltung","GewünschteTermineinhaltung","Notwendige Sicherheitszeit","Lieferzeit","ATO möglich?","Kumuliert","Mittelwert","MTS","ATO","Rohmaterial","Halbfabrikat","Fertigware","Mittlere Lagerdauer","Mittlerer Bestand","Kosten Versandlager","Kosten Kapitalbindung","Mittlerer Lieferverzug","Kosten Lieferverzug","Termineinhaltung","Mittlere Lagerdauer","Mittlerer Bestand","Kosten Versandlager","Kosten Kapitalbindung","Mittlerer Lieferverzug","Kosten Lieferverzug","Sicherheitszeit","Mittlere Lagerdauer","Mittlerer Bestand","Kosten Versandlager","Kosten Kapitalbindung","Mittlerer Lieferverzug","Kosten Lieferverzug","Termineinhaltung","Mittlere Lagerdauer","Mittlerer Bestand","Kosten Versandlager","Kosten Kapitalbindung","Mittlerer Lieferverzug","Kosten Lieferverzug","Sicherheitszeit","Gewünschter Servicegrad","Zugangsmenge","Abgangsmenge","maximale negative Mengenabweichung","maximale positive Mengenabweichung","minimale Bedarfsrate","max Bedarfsrate","mittlere Bedarfrate [Stück/Tag]","Wiederbeschaffungszeit","Sicherheitsbestand","Grenzbestand BL0","Grenzbestand BL1","Grenzverzug LV0","Grenzverzug LV1","Mittlere Lagerverweildauer","Maximale Lagerverweildauer","MTS möglich?","Gewünschter Servicegrad","Zugangsmenge","Abgangsmenge","maximale negative Mengenabweichung","maximale positive Mengenabweichung","minimale Bedarfsrate","max Bedarfsrate","mittlere Bedarfrate [Stück/Tag]","Wiederbeschaffungszeit","Sicherheitsbestand","Grenzbestand BL0","Grenzbestand BL1","Grenzverzug LV0","Grenzverzug LV1","Mittlere Lagerverweildauer","Gewünschter Servicegrad","Zugangsmenge","Abgangsmenge","maximale negative Mengenabweichung","maximale positive Mengenabweichung","minimale Bedarfsrate","max Bedarfsrate","mittlere Bedarfrate [Stück/Tag]","Wiederbeschaffungszeit","Sicherheitsbestand","Grenzbestand BL0","Grenzbestand BL1","Grenzverzug LV0","Grenzverzug LV1","Mittlere Lagerverweildauer","Gewünschter Servicegrad","Zugangsmenge","Abgangsmenge","maximale negative Mengenabweichung","maximale positive Mengenabweichung","minimale Bedarfsrate","max Bedarfsrate","mittlere Bedarfrate [Stück/Tag]","Wiederbeschaffungszeit","Sicherheitsbestand","Grenzbestand BL0","Grenzbestand BL1","Grenzverzug LV0","Grenzverzug LV1","Mittlere Lagerverweildauer","Gewünschter Servicegrad","Zugangsmenge","Abgangsmenge","maximale negative Mengenabweichung","maximale positive Mengenabweichung","minimale Bedarfsrate","max Bedarfsrate","mittlere Bedarfrate [Stück/Tag]","Wiederbeschaffungszeit","Sicherheitsbestand","Grenzbestand BL0","Grenzbestand BL1","Grenzverzug LV0","Grenzverzug LV1","Mittlere Lagerverweildauer","Lagerkosten","Mittlerer Bestand","Kapitalbindungskosten","Wagniskosten","Mittlerer Lieferverzug","Kosten Lieferverzug","Servicegrad","Lagerkosten","Mittlerer Bestand","Kapitalbindungskosten","Wagniskosten","Mittlerer Lieferverzug","Kosten Lieferverzug","Lagerkosten","Mittlerer Bestand","Kapitalbindungskosten","Wagniskosten","Lagerkosten","Mittlerer Bestand","Kapitalbindungskosten","Lagerkosten","Mittlerer Bestand","Kapitalbindungskosten","Lagerkosten","Mittlerer Bestand","Kapitalbindungskosten","Bedarf je Produkt","Maximal","Mittel","LG MTS"]

{"sheet":"Eingrenzung_positiv","index":38,"n_rows":25,"n_cols":158,"rows_kept":25,"cut":false,"hidden":true,"merged":[[0,72,0,86],[0,0,1,0],[0,1,1,1],[0,2,0,10],[0,11,0,19],[0,20,0,21],[0,22,0,23],[0,24,0,26],[0,33,0,40],[0,41,0,46],[0,47,0,54],[0,55,0,71],[0,149,0,151],[0,152,0,154],[0,155,0,157],[0,87,0,101],[0,102,0,116],[0,117,0,131],[0,132,0,137],[0,138,0,144],[0,145,0,148]]}
["Produkt","Kundenwunschlieferzeit [Tage]","Lieferzeitprüfung MTO",null,null,null,null,null,null,null,null,"Lieferzeitprüfung ATO",null,null,null,null,null,null,null,null,"Bestellmenge",null,"Wagnis",null,"Herstellkosten",null,null,"MTO Kosten und Zeiten mit Sicherheitszeit",null,null,null,null,null,"MTO Kosten und Zeiten reduzierte Sicherheitszeit",null,null,null,null,null,null,null,"ATO Kosten und Zeiten mit Sicherheitszeit",null,null,null,null,null,"ATO Kosten und Zeiten reduzierte Sicherheitszeit",null,null,null,null,null,null,null,"Lagerverweildauerprüfung Fertigwarenlager MTS",null,null,null,null,null,null,null,null,null,null,null,null,null,null,null,null," Halbfabriktslager",null,null,null,null,null,null,null,null,null,null,null,null,null,null,"Rohmateriallager MTS",null,null,null,null,null,null,null,null,null,null,null,null,null,null,"Rohmateriallager ATO",null,null,null,null,null,null,null,null,null,null,null,null,null,null," Rohmateriallager MTO",null,null,null,null,null,null,null,null,null,null,null,null,null,null,"FWL MTS Kosten und Zeiten mit Wunschservicegrad",null,null,null,null,null,"FWL MTS Kosten und Zeiten mit Einhaltung maximale Lagerverweildauer",null,null,null,null,null,null,"HFL ATO Kosten und Zeiten ",null,null,null,"RML MTS Kosten",null,null,"RML ATO Kosten",null,null,"RML MTO Kosten"]
[null,null,"Durchlaufzeit MTO","Maximale negative Terminabweichung","Maximale positive Terminabweichung","Mittlere Terinabweichung","Standardabweichug Termineinhaltung","Gewünschte Termineinhaltung","Notwendige Sicherheitszeit","Lieferzeit","MTO möglich?","Durchlaufzeit ATO nach KEP","Maximale negative Terminabweichung","Maximale positiveTerminabweichung","Mittlere Terminabweichung","Standardabweichug Termineinhaltung","GewünschteTermineinhaltung","Notwendige Sicherheitszeit","Lieferzeit","ATO möglich?","Kumuliert","Mittelwert","MTS","ATO","Rohmaterial","Halbfabrikat","Fertigware","Mittlere Lagerdauer","Mittlerer Bestand","Kosten Versandlager","Kosten Kapitalbindung","Mittlerer Lieferverzug","Kosten Lieferverzug","Termineinhaltung","Mittlere Lagerdauer","Mittlerer Bestand","Kosten Versandlager","Kosten Kapitalbindung","Mittlerer Lieferverzug","Kosten Lieferverzug","Sicherheitszeit","Mittlere Lagerdauer","Mittlerer Bestand","Kosten Versandlager","Kosten Kapitalbindung","Mittlerer Lieferverzug","Kosten Lieferverzug","Termineinhaltung","Mittlere Lagerdauer","Mittlerer Bestand","Kosten Versandlager","Kosten Kapitalbindung","Mittlerer Lieferverzug","Kosten Lieferverzug","Sicherheitszeit","Gewünschter Servicegrad","Zugangsmenge","Abgangsmenge","maximale negative Mengenabweichung","maximale positive Mengenabweichung","minimale Bedarfsrate","max Bedarfsrate","mittlere Bedarfrate [Stück/Tag]","Wiederbeschaffungszeit","Sicherheitsbestand","Grenzbestand BL0","Grenzbestand BL1","Grenzverzug LV0","Grenzverzug LV1","Mittlere Lagerverweildauer","Maximale Lagerverweildauer","MTS möglich?","Gewünschter Servicegrad","Zugangsmenge","Abgangsmenge","maximale negative Mengenabweichung","maximale positive Mengenabweichung","minimale Bedarfsrate","max Bedarfsrate","mittlere Bedarfrate [Stück/Tag]","Wiederbeschaffungszeit","Sicherheitsbestand","Grenzbestand BL0","Grenzbestand BL1","Grenzverzug LV0","Grenzverzug LV1","Mittlere Lagerverweildauer","Gewünschter Servicegrad","Zugangsmenge","Abgangsmenge","maximale negative Mengenabweichung","maximale positive Mengenabweichung","minimale Bedarfsrate","max Bedarfsrate","mittlere Bedarfrate [Stück/Tag]","Wiederbeschaffungszeit","Sicherheitsbestand","Grenzbestand BL0","Grenzbestand BL1","Grenzverzug LV0","Grenzverzug LV1","Mittlere Lagerverweildauer","Gewünschter Servicegrad","Zugangsmenge","Abgangsmenge","maximale negative Mengenabweichung","maximale positive Mengenabweichung","minimale Bedarfsrate","max Bedarfsrate","mittlere Bedarfrate [Stück/Tag]","Wiederbeschaffungszeit","Sicherheitsbestand","Grenzbestand BL0","Grenzbestand BL1","Grenzverzug LV0","Grenzverzug LV1","Mittlere Lagerverweildauer","Gewünschter Servicegrad","Zugangsmenge","Abgangsmenge","maximale negative Mengenabweichung","maximale positive Mengenabweichung","minimale Bedarfsrate","max Bedarfsrate","mittlere Bedarfrate [Stück/Tag]","Wiederbeschaffungszeit","Sicherheitsbestand","Grenzbestand BL0","Grenzbestand BL1","Grenzverzug LV0","Grenzverzug LV1","Mittlere Lagerverweildauer","Lagerkosten","Mittlerer Bestand","Kapitalbindungskosten","Wagniskosten","Mittlerer Lieferverzug","Kosten Lieferverzug","Servicegrad","Lagerkosten","Mittlerer Bestand","Kapitalbindungskosten","Wagniskosten","Mittlerer Lieferverzug","Kosten Lieferverzug","Lagerkosten","Mittlerer Bestand","Kapitalbindungskosten","Wagniskosten","Lagerkosten","Mittlerer Bestand","Kapitalbindungskosten","Lagerkosten","Mittlerer Bestand","Kapitalbindungskosten","Lagerkosten","Mittlerer Bestand","Kapitalbindungskosten"]
[]
[]
[]
[]
[]
[]
[]
[]
[]
[]
[]
[]
[]
[]
[]
[]
[]
[]
[]
[]
[]
[]
[null,null,null,null,null,null,null,null,null,null,null,null,null,null,null,null,null,null,null,null,null,null,null,null,null,null,null,null,null,null,null,null,null,null,null,null,null,null,null,null,null,null,{"$f":"COLUMN()","v":43}]

{"sheet":"Eingrenzung_negativ","index":39,"n_rows":2,"n_cols":158,"rows_kept":2,"cut":false,"hidden":true,"merged":[[0,72,0,86],[0,0,1,0],[0,1,1,1],[0,2,0,10],[0,11,0,19],[0,20,0,21],[0,22,0,23],[0,24,0,26],[0,33,0,40],[0,41,0,46],[0,47,0,54],[0,55,0,71],[0,149,0,151],[0,152,0,154],[0,155,0,157],[0,87,0,101],[0,102,0,116],[0,117,0,131],[0,132,0,137],[0,138,0,144],[0,145,0,148]]}
["Produkt","Kundenwunschlieferzeit [Tage]","Lieferzeitprüfung MTO",null,null,null,null,null,null,null,null,"Lieferzeitprüfung ATO",null,null,null,null,null,null,null,null,"Bestellmenge",null,"Wagnis",null,"Herstellkosten",null,null,"MTO Kosten und Zeiten mit Sicherheitszeit",null,null,null,null,null,"MTO Kosten und Zeiten reduzierte Sicherheitszeit",null,null,null,null,null,null,null,"ATO Kosten und Zeiten mit Sicherheitszeit",null,null,null,null,null,"ATO Kosten und Zeiten reduzierte Sicherheitszeit",null,null,null,null,null,null,null,"Lagerverweildauerprüfung Fertigwarenlager MTS",null,null,null,null,null,null,null,null,null,null,null,null,null,null,null,null," Halbfabriktslager",null,null,null,null,null,null,null,null,null,null,null,null,null,null,"Rohmateriallager MTS",null,null,null,null,null,null,null,null,null,null,null,null,null,null,"Rohmateriallager ATO",null,null,null,null,null,null,null,null,null,null,null,null,null,null," Rohmateriallager MTO",null,null,null,null,null,null,null,null,null,null,null,null,null,null,"FWL MTS Kosten und Zeiten mit Wunschservicegrad",null,null,null,null,null,"FWL MTS Kosten und Zeiten mit Einhaltung maximale Lagerverweildauer",null,null,null,null,null,null,"HFL ATO Kosten und Zeiten ",null,null,null,"RML MTS Kosten",null,null,"RML ATO Kosten",null,null,"RML MTO Kosten"]
[null,null,"Durchlaufzeit MTO","Maximale negative Terminabweichung","Maximale positive Terminabweichung","Mittlere Terinabweichung","Standardabweichug Termineinhaltung","Gewünschte Termineinhaltung","Notwendige Sicherheitszeit","Lieferzeit","MTO möglich?","Durchlaufzeit ATO nach KEP","Maximale negative Terminabweichung","Maximale positiveTerminabweichung","Mittlere Terminabweichung","Standardabweichug Termineinhaltung","GewünschteTermineinhaltung","Notwendige Sicherheitszeit","Lieferzeit","ATO möglich?","Kumuliert","Mittelwert","MTS","ATO","Rohmaterial","Halbfabrikat","Fertigware","Mittlere Lagerdauer","Mittlerer Bestand","Kosten Versandlager","Kosten Kapitalbindung","Mittlerer Lieferverzug","Kosten Lieferverzug","Termineinhaltung","Mittlere Lagerdauer","Mittlerer Bestand","Kosten Versandlager","Kosten Kapitalbindung","Mittlerer Lieferverzug","Kosten Lieferverzug","Sicherheitszeit","Mittlere Lagerdauer","Mittlerer Bestand","Kosten Versandlager","Kosten Kapitalbindung","Mittlerer Lieferverzug","Kosten Lieferverzug","Termineinhaltung","Mittlere Lagerdauer","Mittlerer Bestand","Kosten Versandlager","Kosten Kapitalbindung","Mittlerer Lieferverzug","Kosten Lieferverzug","Sicherheitszeit","Gewünschter Servicegrad","Zugangsmenge","Abgangsmenge","maximale negative Mengenabweichung","maximale positive Mengenabweichung","minimale Bedarfsrate","max Bedarfsrate","mittlere Bedarfrate [Stück/Tag]","Wiederbeschaffungszeit","Sicherheitsbestand","Grenzbestand BL0","Grenzbestand BL1","Grenzverzug LV0","Grenzverzug LV1","Mittlere Lagerverweildauer","Maximale Lagerverweildauer","MTS möglich?","Gewünschter Servicegrad","Zugangsmenge","Abgangsmenge","maximale negative Mengenabweichung","maximale positive Mengenabweichung","minimale Bedarfsrate","max Bedarfsrate","mittlere Bedarfrate [Stück/Tag]","Wiederbeschaffungszeit","Sicherheitsbestand","Grenzbestand BL0","Grenzbestand BL1","Grenzverzug LV0","Grenzverzug LV1","Mittlere Lagerverweildauer","Gewünschter Servicegrad","Zugangsmenge","Abgangsmenge","maximale negative Mengenabweichung","maximale positive Mengenabweichung","minimale Bedarfsrate","max Bedarfsrate","mittlere Bedarfrate [Stück/Tag]","Wiederbeschaffungszeit","Sicherheitsbestand","Grenzbestand BL0","Grenzbestand BL1","Grenzverzug LV0","Grenzverzug LV1","Mittlere Lagerverweildauer","Gewünschter Servicegrad","Zugangsmenge","Abgangsmenge","maximale negative Mengenabweichung","maximale positive Mengenabweichung","minimale Bedarfsrate","max Bedarfsrate","mittlere Bedarfrate [Stück/Tag]","Wiederbeschaffungszeit","Sicherheitsbestand","Grenzbestand BL0","Grenzbestand BL1","Grenzverzug LV0","Grenzverzug LV1","Mittlere Lagerverweildauer","Gewünschter Servicegrad","Zugangsmenge","Abgangsmenge","maximale negative Mengenabweichung","maximale positive Mengenabweichung","minimale Bedarfsrate","max Bedarfsrate","mittlere Bedarfrate [Stück/Tag]","Wiederbeschaffungszeit","Sicherheitsbestand","Grenzbestand BL0","Grenzbestand BL1","Grenzverzug LV0","Grenzverzug LV1","Mittlere Lagerverweildauer","Lagerkosten","Mittlerer Bestand","Kapitalbindungskosten","Wagniskosten","Mittlerer Lieferverzug","Kosten Lieferverzug","Servicegrad","Lagerkosten","Mittlerer Bestand","Kapitalbindungskosten","Wagniskosten","Mittlerer Lieferverzug","Kosten Lieferverzug","Lagerkosten","Mittlerer Bestand","Kapitalbindungskosten","Wagniskosten","Lagerkosten","Mittlerer Bestand","Kapitalbindungskosten","Lagerkosten","Mittlerer Bestand","Kapitalbindungskosten","Lagerkosten","Mittlerer Bestand","Kapitalbindungskosten"]

{"sheet":"Termineinhaltung","index":40,"n_rows":25,"n_cols":17,"rows_kept":25,"cut":false,"hidden":true,"merged":[[22,0,22,1],[23,0,23,1],[24,0,24,1],[21,0,21,1],[20,0,20,1],[15,0,15,1],[16,0,16,1],[19,0,19,1],[17,0,17,1],[18,0,18,1],[0,0,0,1],[5,0,5,1],[9,0,9,1],[10,0,10,1],[14,0,14,1],[2,0,2,1],[6,0,6,1],[7,0,7,1],[13,0,13,1],[1,0,1,1],[3,0,3,1],[4,0,4,1],[8,0,8,1],[11,0,11,1],[12,0,12,1]]}
["Größe",null,"Wert","Einheit",null,"x","y","y kum.","Abweichung von gewünschter Termineinhaltung","gew. Lagerdauer ","Lagerkosten [€]","gewichteter Lieferverzug ","Lieferverzugskosten [€]","red. SZ gew. Lagerdauer ","red. SZ Lagerkosten [€]","red. SZ gewichteter Lieferverzug ","red.SZ Lieferverzugskosten [€]"]
["Intervall ",null,1,"Tage"]
["mittlere TA ",null,null,"Tage"]
["Standardabweichung ",null,null,"Tage"]
["min. Abweichung TE "]
["mittlere Bestellmenge ",null,null,"Stück"]
["TE reduzierte Sicherheitszeit"]
["gewünschte TE"]
["Sicherheitszeit",null,null,"Tage"]
["Lagerkosten ",null,null,"€/Tag&Stück"]
["Lieferverzugskosten",null,null,"€/Tag&Stück"]
["mittlere Lagerdauer",null,null,"Tage"]
["mittlerer Lieferverzug",null,null,"Tage"]
["Kosten Versandlager ",null,null,"€"]
["Kosten Verzug",null,null,"€"]
["red. SZ mittlere Lagerdauer",null,null,"Tage"]
["red. SZ mittlerer Lieferverzug",null,null,"Tage"]
["red. SZ Kosten Versandlager",null,null,"€"]
["red. SZ Kosten Verzug",null,null,"€"]
["Funktionsgleichung Lieferverzug"]
["zugehöriger Funktionswert "]
["Produkt"]
["Kundenwunschlieferzeit",null,null,"Tage"]
["minimale Durchlaufzeit",null,null,"Tage"]
["Differenz",null,null,"Tage"]

{"sheet":"Termineinhaltung_positiv","index":41,"n_rows":25,"n_cols":17,"rows_kept":25,"cut":false,"hidden":true,"merged":[[5,0,5,1],[0,0,0,1],[1,0,1,1],[2,0,2,1],[3,0,3,1],[4,0,4,1],[17,0,17,1],[6,0,6,1],[7,0,7,1],[8,0,8,1],[9,0,9,1],[10,0,10,1],[11,0,11,1],[12,0,12,1],[13,0,13,1],[14,0,14,1],[15,0,15,1],[16,0,16,1],[24,0,24,1],[18,0,18,1],[19,0,19,1],[20,0,20,1],[21,0,21,1],[22,0,22,1],[23,0,23,1]]}
["Größe",null,"Wert","Einheit",null,"x","y","y kum.","Abweichung von gewünschter Termineinhaltung","gew. Lagerdauer ","Lagerkosten [€]","gewichteter Lieferverzug ","Lieferverzugskosten [€]","red. SZ gew. Lagerdauer ","red. SZ Lagerkosten [€]","red. SZ gewichteter Lieferverzug ","red.SZ Lieferverzugskosten [€]"]
["Intervall ",null,1,"Tage"]
["mittlere TA ",null,null,"Tage"]
["Standardabweichung ",null,null,"Tage"]
["min. Abweichung TE "]
["mittlere Bestellmenge ",null,null,"Stück"]
["TE reduzierte Sicherheitszeit"]
["gewünschte TE"]
["Sicherheitszeit",null,null,"Tage"]
["Lagerkosten ",null,null,"€/Tag&Stück"]
["Lieferverzugskosten",null,null,"€/Tag&Stück"]
["mittlere Lagerdauer",null,null,"Tage"]
["mittlerer Lieferverzug",null,null,"Tage"]
["Kosten Versandlager ",null,null,"€"]
["Kosten Verzug",null,null,"€"]
["red. SZ mittlere Lagerdauer",null,null,"Tage"]
["red. SZ mittlerer Lieferverzug",null,null,"Tage"]
["red. SZ Kosten Versandlager",null,null,"€"]
["red. SZ Kosten Verzug",null,null,"€"]
["Funktionsgleichung Lieferverzug"]
["zugehöriger Funktionswert "]
["Produkt"]
["Kundenwunschlieferzeit",null,null,"Tage"]
["minimale Durchlaufzeit",null,null,"Tage"]
["Differenz",null,null,"Tage"]

{"sheet":"Termineinhaltung_negativ","index":42,"n_rows":25,"n_cols":17,"rows_kept":25,"cut":false,"hidden":true,"merged":[[5,0,5,1],[0,0,0,1],[1,0,1,1],[2,0,2,1],[3,0,3,1],[4,0,4,1],[17,0,17,1],[6,0,6,1],[7,0,7,1],[8,0,8,1],[9,0,9,1],[10,0,10,1],[11,0,11,1],[12,0,12,1],[13,0,13,1],[14,0,14,1],[15,0,15,1],[16,0,16,1],[24,0,24,1],[18,0,18,1],[19,0,19,1],[20,0,20,1],[21,0,21,1],[22,0,22,1],[23,0,23,1]]}
["Größe",null,"Wert","Einheit",null,"x","y","y kum.","Abweichung von gewünschter Termineinhaltung","gew. Lagerdauer ","Lagerkosten [€]","gewichteter Lieferverzug ","Lieferverzugskosten [€]","red. SZ gew. Lagerdauer ","red. SZ Lagerkosten [€]","red. SZ gewichteter Lieferverzug ","red.SZ Lieferverzugskosten [€]"]
["Intervall ",null,1,"Tage"]
["mittlere TA ",null,null,"Tage"]
["Standardabweichung ",null,null,"Tage"]
["min. Abweichung TE "]
["mittlere Bestellmenge ",null,null,"Stück"]
["TE reduzierte Sicherheitszeit"]
["gewünschte TE"]
["Sicherheitszeit",null,null,"Tage"]
["Lagerkosten ",null,null,"€/Tag&Stück"]
["Lieferverzugskosten",null,null,"€/Tag&Stück"]
["mittlere Lagerdauer",null,null,"Tage"]
["mittlerer Lieferverzug",null,null,"Tage"]
["Kosten Versandlager ",null,null,"€"]
["Kosten Verzug",null,null,"€"]
["red. SZ mittlere Lagerdauer",null,null,"Tage"]
["red. SZ mittlerer Lieferverzug",null,null,"Tage"]
["red. SZ Kosten Versandlager",null,null,"€"]
["red. SZ Kosten Verzug",null,null,"€"]
["Funktionsgleichung Lieferverzug"]
["zugehöriger Funktionswert "]
["Produkt"]
["Kundenwunschlieferzeit",null,null,"Tage"]
["minimale Durchlaufzeit",null,null,"Tage"]
["Differenz",null,null,"Tage"]

{"sheet":"Servicegrad","index":43,"n_rows":106,"n_cols":21,"rows_kept":106,"cut":false,"hidden":true,"merged":[[26,0,26,1],[25,0,25,1],[27,0,27,1],[28,0,28,1],[42,0,42,1],[33,0,33,1],[34,0,34,1],[35,0,35,1],[29,0,29,1],[30,0,30,1],[31,0,31,1],[32,0,32,1],[40,0,40,1],[39,0,39,1],[56,0,56,1],[57,0,57,1],[63,0,63,1],[52,0,52,1],[53,0,53,1],[54,0,54,1],[55,0,55,1],[68,0,68,1],[69,0,69,1],[58,0,58,1],[59,0,59,1],[60,0,60,1],[61,0,61,1],[62,0,62,1],[64,0,64,1],[65,0,65,1],[66,0,66,1],[67,0,67,1],[49,0,49,1],[48,0,48,1],[50,0,50,1],[51,0,51,1],[47,0,47,1],[46,0,46,1],[10,0,10,1],[11,0,11,1],[0,0,0,1],[1,0,1,1],[5,0,5,1],[8,0,8,1],[9,0,9,1],[4,0,4,1],[6,0,6,1],[3,0,3,1],[7,0,7,1],[2,0,2,1],[21,0,21,1],[22,0,22,1],[23,0,23,1],[24,0,24,1],[16,0,16,1],[18,0,18,1],[19,0,19,1],[12,0,12,1],[13,0,13,1],[14,0,14,1],[15,0,15,1],[20,0,20,1],[17,0,17,1],[45,0,45,1],[41,0,41,1],[36,0,36,1],[37,0,37,1],[38,0,38,1],[43,0,43,1],[44,0,44,1]]}
["Größe",null,"Wert","Einheit",null,"t Laufvariable","Servicegrad(t)","Abweichung zu gewünschtem Servicegrad","Bestand(t)","Verzug(t)","Abweichung Bestand","Verzug","Servicegrad","Häufigkeit","gewichteter Verzug","Lieferverzugskosten","VD Verzug","VD Servicegrad","VD Häufigkeit","VD gewichteter Verzug","Lieferverzugskosten"]
["Zugang (Losgröße)",null,null,"Stück",null,0]
["Abgang (Mittlere Bestellmenge)",null,null,"Stück",null,1.0000000000000001E-5]
["max positive MA",null,null,"Stück",null,1E-4]
["max negative MA",null,null,"Stück",null,1E-3]
["Wiederbeschaffungszeit",null,null,"Tage",null,5.0000000000000001E-3]
["max positive TA",null,null,"Tage",null,0.01]
["max negative TA",null,null,"Tage",null,0.02]
["kumulierte Bestellmenge",null,null,"Stück",null,0.03]
["mittlere Bedarfsrate",null,null,"Stück/Tag",null,0.04]
["max Bedarfsrate",null,null,"Stück",null,0.05]
["min Bedarfsrate",null,null,"Stück",null,0.06]
["Sicherheitsbestand",null,null,"Stück",null,7.0000000000000007E-2]
["Grenzbestand BL0",null,null,"Stück",null,0.08]
["Grenzbestand BL1",null,null,"Stück",null,0.09]
["Grenzverzug LV0",null,null,"Tage",null,0.1]
["Grenzverzug LV1",null,null,"Tage",null,0.11]
["C-Wert",null,0.33,null,null,0.12]
["gewünschter Servicegrad",null,null,null,null,0.13]
["min. Abweichung",null,null,null,null,0.14000000000000001]
["zweitkleinste Abweichung",null,null,null,null,0.15]
["t min Abw.",null,null,null,null,0.16]
["t zweitkleinste Abw.",null,null,null,null,0.17]
["SG min Abw.",null,null,null,null,0.18]
["SG zweitkleinste Abw.",null,null,null,null,0.19]
["Bestand min Abw.",null,null,null,null,0.2]
["Bestand zweitkleinste Abw.",null,null,null,null,0.21]
["Verzug min Abw.",null,null,null,null,0.22]
["Verzug zweitkleinste Abw.",null,null,null,null,0.23]
["t m",null,null,null,null,0.24]
["t b",null,null,null,null,0.25]
["SG m",null,null,null,null,0.26]
["SG b",null,null,null,null,0.27]
["Verzug m",null,null,null,null,0.28000000000000003]
["Verzug b",null,null,null,null,0.28999999999999998]
["Bestand (genähert)",null,null,"Stück",null,0.3]
["max. Verzug (genähert)",null,null,"Tage",null,0.31]
["t (genähert)",null,null,null,null,0.32]
["Intervall",null,1,"Tage",null,0.33]
["mittlerer Lieferverzug",null,null,"Tage",null,0.34]
["mittlere Lagerdauer",null,null,"Tage",null,0.35]
["Lagerkosten ",null,null,"€/Tag&Stück",null,0.36]
["Lieferverzugskosten",null,null,"€/Tag&Stück",null,0.37]
["Kosten Lager",null,null,"€",null,0.38]
["Kosten Lieferverzug",null,null,"€",null,0.39]
["Funktionsgleichung Lieferverzug",null,null,null,null,0.4]
["zugehöriger Funktionswert ",null,null,null,null,0.41]
["Produkt",null,null,null,null,0.42]
["max. Lagerverweildauer",null,null,null,null,0.43]
["VD max. mittlerer Bestand ",null,null,null,null,0.44]
["VD min. Abweichung",null,null,null,null,0.45]
["VD zweitkleinste Abweichung",null,null,null,null,0.46]
["VD t min Abw.",null,null,null,null,0.47]
["VD t zweitkleinste Abw.",null,null,null,null,0.48]
["VD SG min Abw.",null,null,null,null,0.49]
["VD SG zweitkleinste Abw.",null,null,null,null,0.5]
["VD Bestand min Abw.",null,null,null,null,0.51]
["VD Bestand zweitkleinste Abw.",null,null,null,null,0.52]
["VD Verzug min Abw.",null,null,null,null,0.53]
["VD Verzug zweitkleinste Abw.",null,null,null,null,0.54]
["VD t m",null,null,null,null,0.55000000000000004]
["VD t b",null,null,null,null,0.56000000000000005]
["VD SG m",null,null,null,null,0.56999999999999995]
["VD SG b",null,null,null,null,0.57999999999999996]
["VD Verzug m",null,null,null,null,0.59]
["VD Verzug b",null,null,null,null,0.6]
["VD SG (genähert)",null,null,null,null,0.61]
["VD max. Verzug (genähert)",null,null,"Tage",null,0.62]
["VD mittlerer Lieferverzug",null,null,"Tage",null,0.63]
["VD Kosten Lager",null,null,"€",null,0.64]
["VD Kosten Lieferverzugs",null,null,"€",null,0.65]
[null,null,null,null,null,0.66]
[null,null,null,null,null,0.67]
[null,null,null,null,null,0.68]
[null,null,null,null,null,0.69]
[null,null,null,null,null,0.7]
[null,null,null,null,null,0.71]
[null,null,null,null,null,0.72]
[null,null,null,null,null,0.73]
[null,null,null,null,null,0.74]
[null,null,null,null,null,0.75]
[null,null,null,null,null,0.76]
[null,null,null,null,null,0.77]
[null,null,null,null,null,0.78]
[null,null,null,null,null,0.79]
[null,null,null,null,null,0.8]
[null,null,null,null,null,0.81]
[null,null,null,null,null,0.82]
[null,null,null,null,null,0.83]
[null,null,null,null,null,0.84]
[null,null,null,null,null,0.85]
[null,null,null,null,null,0.86]
[null,null,null,null,null,0.87]
[null,null,null,null,null,0.88]
[null,null,null,null,null,0.89]
[null,null,null,null,null,0.9]
[null,null,null,null,null,0.91]
[null,null,null,null,null,0.92]
[null,null,null,null,null,0.93]
[null,null,null,null,null,0.94]
[null,null,null,null,null,0.95]
[null,null,null,null,null,0.96]
[null,null,null,null,null,0.97]
[null,null,null,null,null,0.98]
[null,null,null,null,null,0.99]
[null,null,null,null,null,1]

{"sheet":"Servicegrad_positiv","index":44,"n_rows":106,"n_cols":21,"rows_kept":106,"cut":false,"hidden":true,"merged":[[11,0,11,1],[0,0,0,1],[1,0,1,1],[2,0,2,1],[3,0,3,1],[4,0,4,1],[5,0,5,1],[6,0,6,1],[7,0,7,1],[8,0,8,1],[9,0,9,1],[10,0,10,1],[23,0,23,1],[12,0,12,1],[13,0,13,1],[14,0,14,1],[15,0,15,1],[16,0,16,1],[17,0,17,1],[18,0,18,1],[19,0,19,1],[20,0,20,1],[21,0,21,1],[22,0,22,1],[35,0,35,1],[24,0,24,1],[25,0,25,1],[26,0,26,1],[27,0,27,1],[28,0,28,1],[29,0,29,1],[30,0,30,1],[31,0,31,1],[32,0,32,1],[33,0,33,1],[34,0,34,1],[47,0,47,1],[36,0,36,1],[37,0,37,1],[38,0,38,1],[39,0,39,1],[40,0,40,1],[41,0,41,1],[42,0,42,1],[43,0,43,1],[44,0,44,1],[45,0,45,1],[46,0,46,1],[59,0,59,1],[48,0,48,1],[49,0,49,1],[50,0,50,1],[51,0,51,1],[52,0,52,1],[53,0,53,1],[54,0,54,1],[55,0,55,1],[56,0,56,1],[57,0,57,1],[58,0,58,1],[66,0,66,1],[67,0,67,1],[68,0,68,1],[69,0,69,1],[60,0,60,1],[61,0,61,1],[62,0,62,1],[63,0,63,1],[64,0,64,1],[65,0,65,1]]}
["Größe",null,"Wert","Einheit",null,"t Laufvariable","Servicegrad(t)","Abweichung zu gewünschtem Servicegrad","Bestand(t)","Verzug(t)","Abweichung Bestand","Verzug","Servicegrad","Häufigkeit","gewichteter Verzug","Lieferverzugskosten","VD Verzug","VD Servicegrad","VD Häufigkeit","VD gewichteter Verzug","Lieferverzugskosten"]
["Zugang (Losgröße)",null,null,"Stück",null,0]
["Abgang (Mittlere Bestellmenge)",null,null,"Stück",null,1.0000000000000001E-5]
["max positive MA",null,null,"Stück",null,1E-4]
["max negative MA",null,null,"Stück",null,1E-3]
["Wiederbeschaffungszeit",null,null,"Tage",null,5.0000000000000001E-3]
["max positive TA",null,null,"Tage",null,0.01]
["max negative TA",null,null,"Tage",null,0.02]
["kumulierte Bestellmenge",null,null,"Stück",null,0.03]
["mittlere Bedarfsrate",null,null,"Stück/Tag",null,0.04]
["max Bedarfsrate",null,null,"Stück",null,0.05]
["min Bedarfsrate",null,null,"Stück",null,0.06]
["Sicherheitsbestand",null,null,"Stück",null,7.0000000000000007E-2]
["Grenzbestand BL0",null,null,"Stück",null,0.08]
["Grenzbestand BL1",null,null,"Stück",null,0.09]
["Grenzverzug LV0",null,null,"Tage",null,0.1]
["Grenzverzug LV1",null,null,"Tage",null,0.11]
["C-Wert",null,0.33,null,null,0.12]
["gewünschter Servicegrad",null,null,null,null,0.13]
["min. Abweichung",null,null,null,null,0.14000000000000001]
["zweitkleinste Abweichung",null,null,null,null,0.15]
["t min Abw.",null,null,null,null,0.16]
["t zweitkleinste Abw.",null,null,null,null,0.17]
["SG min Abw.",null,null,null,null,0.18]
["SG zweitkleinste Abw.",null,null,null,null,0.19]
["Bestand min Abw.",null,null,null,null,0.2]
["Bestand zweitkleinste Abw.",null,null,null,null,0.21]
["Verzug min Abw.",null,null,null,null,0.22]
["Verzug zweitkleinste Abw.",null,null,null,null,0.23]
["t m",null,null,null,null,0.24]
["t b",null,null,null,null,0.25]
["SG m",null,null,null,null,0.26]
["SG b",null,null,null,null,0.27]
["Verzug m",null,null,null,null,0.28000000000000003]
["Verzug b",null,null,null,null,0.28999999999999998]
["Bestand (genähert)",null,null,"Stück",null,0.3]
["max. Verzug (genähert)",null,null,"Tage",null,0.31]
["t (genähert)",null,null,null,null,0.32]
["Intervall",null,1,"Tage",null,0.33]
["mittlerer Lieferverzug",null,null,"Tage",null,0.34]
["mittlere Lagerdauer",null,null,"Tage",null,0.35]
["Lagerkosten ",null,null,"€/Tag&Stück",null,0.36]
["Lieferverzugskosten",null,null,"€/Tag&Stück",null,0.37]
["Kosten Lager",null,null,"€",null,0.38]
["Kosten Lieferverzug",null,null,"€",null,0.39]
["Funktionsgleichung Lieferverzug",null,null,null,null,0.4]
["zugehöriger Funktionswert ",null,null,null,null,0.41]
["Produkt",null,null,null,null,0.42]
["max. Lagerverweildauer",null,null,null,null,0.43]
["VD max. mittlerer Bestand ",null,null,null,null,0.44]
["VD min. Abweichung",null,null,null,null,0.45]
["VD zweitkleinste Abweichung",null,null,null,null,0.46]
["VD t min Abw.",null,null,null,null,0.47]
["VD t zweitkleinste Abw.",null,null,null,null,0.48]
["VD SG min Abw.",null,null,null,null,0.49]
["VD SG zweitkleinste Abw.",null,null,null,null,0.5]
["VD Bestand min Abw.",null,null,null,null,0.51]
["VD Bestand zweitkleinste Abw.",null,null,null,null,0.52]
["VD Verzug min Abw.",null,null,null,null,0.53]
["VD Verzug zweitkleinste Abw.",null,null,null,null,0.54]
["VD t m",null,null,null,null,0.55000000000000004]
["VD t b",null,null,null,null,0.56000000000000005]
["VD SG m",null,null,null,null,0.56999999999999995]
["VD SG b",null,null,null,null,0.57999999999999996]
["VD Verzug m",null,null,null,null,0.59]
["VD Verzug b",null,null,null,null,0.6]
["VD SG (genähert)",null,null,null,null,0.61]
["VD max. Verzug (genähert)",null,null,"Tage",null,0.62]
["VD mittlerer Lieferverzug",null,null,"Tage",null,0.63]
["VD Kosten Lager",null,null,"€",null,0.64]
["VD Kosten Lieferverzugs",null,null,"€",null,0.65]
[null,null,null,null,null,0.66]
[null,null,null,null,null,0.67]
[null,null,null,null,null,0.68]
[null,null,null,null,null,0.69]
[null,null,null,null,null,0.7]
[null,null,null,null,null,0.71]
[null,null,null,null,null,0.72]
[null,null,null,null,null,0.73]
[null,null,null,null,null,0.74]
[null,null,null,null,null,0.75]
[null,null,null,null,null,0.76]
[null,null,null,null,null,0.77]
[null,null,null,null,null,0.78]
[null,null,null,null,null,0.79]
[null,null,null,null,null,0.8]
[null,null,null,null,null,0.81]
[null,null,null,null,null,0.82]
[null,null,null,null,null,0.83]
[null,null,null,null,null,0.84]
[null,null,null,null,null,0.85]
[null,null,null,null,null,0.86]
[null,null,null,null,null,0.87]
[null,null,null,null,null,0.88]
[null,null,null,null,null,0.89]
[null,null,null,null,null,0.9]
[null,null,null,null,null,0.91]
[null,null,null,null,null,0.92]
[null,null,null,null,null,0.93]
[null,null,null,null,null,0.94]
[null,null,null,null,null,0.95]
[null,null,null,null,null,0.96]
[null,null,null,null,null,0.97]
[null,null,null,null,null,0.98]
[null,null,null,null,null,0.99]
[null,null,null,null,null,1]

{"sheet":"Servicegrad_negativ","index":45,"n_rows":106,"n_cols":21,"rows_kept":106,"cut":false,"hidden":true,"merged":[[11,0,11,1],[0,0,0,1],[1,0,1,1],[2,0,2,1],[3,0,3,1],[4,0,4,1],[5,0,5,1],[6,0,6,1],[7,0,7,1],[8,0,8,1],[9,0,9,1],[10,0,10,1],[23,0,23,1],[12,0,12,1],[13,0,13,1],[14,0,14,1],[15,0,15,1],[16,0,16,1],[17,0,17,1],[18,0,18,1],[19,0,19,1],[20,0,20,1],[21,0,21,1],[22,0,22,1],[35,0,35,1],[24,0,24,1],[25,0,25,1],[26,0,26,1],[27,0,27,1],[28,0,28,1],[29,0,29,1],[30,0,30,1],[31,0,31,1],[32,0,32,1],[33,0,33,1],[34,0,34,1],[47,0,47,1],[36,0,36,1],[37,0,37,1],[38,0,38,1],[39,0,39,1],[40,0,40,1],[41,0,41,1],[42,0,42,1],[43,0,43,1],[44,0,44,1],[45,0,45,1],[46,0,46,1],[59,0,59,1],[48,0,48,1],[49,0,49,1],[50,0,50,1],[51,0,51,1],[52,0,52,1],[53,0,53,1],[54,0,54,1],[55,0,55,1],[56,0,56,1],[57,0,57,1],[58,0,58,1],[66,0,66,1],[67,0,67,1],[68,0,68,1],[69,0,69,1],[60,0,60,1],[61,0,61,1],[62,0,62,1],[63,0,63,1],[64,0,64,1],[65,0,65,1]]}
["Größe",null,"Wert","Einheit",null,"t Laufvariable","Servicegrad(t)","Abweichung zu gewünschtem Servicegrad","Bestand(t)","Verzug(t)","Abweichung Bestand","Verzug","Servicegrad","Häufigkeit","gewichteter Verzug","Lieferverzugskosten","VD Verzug","VD Servicegrad","VD Häufigkeit","VD gewichteter Verzug","Lieferverzugskosten"]
["Zugang (Losgröße)",null,null,"Stück",null,0]
["Abgang (Mittlere Bestellmenge)",null,null,"Stück",null,1.0000000000000001E-5]
["max positive MA",null,null,"Stück",null,1E-4]
["max negative MA",null,null,"Stück",null,1E-3]
["Wiederbeschaffungszeit",null,null,"Tage",null,5.0000000000000001E-3]
["max positive TA",null,null,"Tage",null,0.01]
["max negative TA",null,null,"Tage",null,0.02]
["kumulierte Bestellmenge",null,null,"Stück",null,0.03]
["mittlere Bedarfsrate",null,null,"Stück/Tag",null,0.04]
["max Bedarfsrate",null,null,"Stück",null,0.05]
["min Bedarfsrate",null,null,"Stück",null,0.06]
["Sicherheitsbestand",null,null,"Stück",null,7.0000000000000007E-2]
["Grenzbestand BL0",null,null,"Stück",null,0.08]
["Grenzbestand BL1",null,null,"Stück",null,0.09]
["Grenzverzug LV0",null,null,"Tage",null,0.1]
["Grenzverzug LV1",null,null,"Tage",null,0.11]
["C-Wert",null,0.33,null,null,0.12]
["gewünschter Servicegrad",null,null,null,null,0.13]
["min. Abweichung",null,null,null,null,0.14000000000000001]
["zweitkleinste Abweichung",null,null,null,null,0.15]
["t min Abw.",null,null,null,null,0.16]
["t zweitkleinste Abw.",null,null,null,null,0.17]
["SG min Abw.",null,null,null,null,0.18]
["SG zweitkleinste Abw.",null,null,null,null,0.19]
["Bestand min Abw.",null,null,null,null,0.2]
["Bestand zweitkleinste Abw.",null,null,null,null,0.21]
["Verzug min Abw.",null,null,null,null,0.22]
["Verzug zweitkleinste Abw.",null,null,null,null,0.23]
["t m",null,null,null,null,0.24]
["t b",null,null,null,null,0.25]
["SG m",null,null,null,null,0.26]
["SG b",null,null,null,null,0.27]
["Verzug m",null,null,null,null,0.28000000000000003]
["Verzug b",null,null,null,null,0.28999999999999998]
["Bestand (genähert)",null,null,"Stück",null,0.3]
["max. Verzug (genähert)",null,null,"Tage",null,0.31]
["t (genähert)",null,null,null,null,0.32]
["Intervall",null,1,"Tage",null,0.33]
["mittlerer Lieferverzug",null,null,"Tage",null,0.34]
["mittlere Lagerdauer",null,null,"Tage",null,0.35]
["Lagerkosten ",null,null,"€/Tag&Stück",null,0.36]
["Lieferverzugskosten",null,null,"€/Tag&Stück",null,0.37]
["Kosten Lager",null,null,"€",null,0.38]
["Kosten Lieferverzug",null,null,"€",null,0.39]
["Funktionsgleichung Lieferverzug",null,null,null,null,0.4]
["zugehöriger Funktionswert ",null,null,null,null,0.41]
["Produkt",null,null,null,null,0.42]
["max. Lagerverweildauer",null,null,null,null,0.43]
["VD max. mittlerer Bestand ",null,null,null,null,0.44]
["VD min. Abweichung",null,null,null,null,0.45]
["VD zweitkleinste Abweichung",null,null,null,null,0.46]
["VD t min Abw.",null,null,null,null,0.47]
["VD t zweitkleinste Abw.",null,null,null,null,0.48]
["VD SG min Abw.",null,null,null,null,0.49]
["VD SG zweitkleinste Abw.",null,null,null,null,0.5]
["VD Bestand min Abw.",null,null,null,null,0.51]
["VD Bestand zweitkleinste Abw.",null,null,null,null,0.52]
["VD Verzug min Abw.",null,null,null,null,0.53]
["VD Verzug zweitkleinste Abw.",null,null,null,null,0.54]
["VD t m",null,null,null,null,0.55000000000000004]
["VD t b",null,null,null,null,0.56000000000000005]
["VD SG m",null,null,null,null,0.56999999999999995]
["VD SG b",null,null,null,null,0.57999999999999996]
["VD Verzug m",null,null,null,null,0.59]
["VD Verzug b",null,null,null,null,0.6]
["VD SG (genähert)",null,null,null,null,0.61]
["VD max. Verzug (genähert)",null,null,"Tage",null,0.62]
["VD mittlerer Lieferverzug",null,null,"Tage",null,0.63]
["VD Kosten Lager",null,null,"€",null,0.64]
["VD Kosten Lieferverzugs",null,null,"€",null,0.65]
[null,null,null,null,null,0.66]
[null,null,null,null,null,0.67]
[null,null,null,null,null,0.68]
[null,null,null,null,null,0.69]
[null,null,null,null,null,0.7]
[null,null,null,null,null,0.71]
[null,null,null,null,null,0.72]
[null,null,null,null,null,0.73]
[null,null,null,null,null,0.74]
[null,null,null,null,null,0.75]
[null,null,null,null,null,0.76]
[null,null,null,null,null,0.77]
[null,null,null,null,null,0.78]
[null,null,null,null,null,0.79]
[null,null,null,null,null,0.8]
[null,null,null,null,null,0.81]
[null,null,null,null,null,0.82]
[null,null,null,null,null,0.83]
[null,null,null,null,null,0.84]
[null,null,null,null,null,0.85]
[null,null,null,null,null,0.86]
[null,null,null,null,null,0.87]
[null,null,null,null,null,0.88]
[null,null,null,null,null,0.89]
[null,null,null,null,null,0.9]
[null,null,null,null,null,0.91]
[null,null,null,null,null,0.92]
[null,null,null,null,null,0.93]
[null,null,null,null,null,0.94]
[null,null,null,null,null,0.95]
[null,null,null,null,null,0.96]
[null,null,null,null,null,0.97]
[null,null,null,null,null,0.98]
[null,null,null,null,null,0.99]
[null,null,null,null,null,1]

{"sheet":"Klassifizierung","index":46,"n_rows":2,"n_cols":48,"rows_kept":2,"cut":false,"hidden":true,"merged":[[0,44,0,47],[0,24,0,43],[0,13,0,16],[0,0,1,0],[0,9,0,12],[0,17,0,18],[0,5,0,8],[0,1,0,4],[0,19,0,23]]}
["Produkt","Auswertung",null,null,null,"ABC-Analyse",null,null,null,"RUS-Analyse",null,null,null,"XYZ-Analyse",null,null,null,"UVW-Analyse",null,"Eingabe",null,null,null,null,"Kombinationsmöglichkeiten",null,null,null,null,null,null,null,null,null,null,null,null,null,null,null,null,null,null,null,"Auswahl"]
[null,"Sortieren","Menge ","Mengenanteil","Verkaufspreis","Umsatz","Umsatzanteil","kumulierter Umsatzanteil","A/B/C","mittlere Bestellmenge","Standardabweichung","Variationskoeffizient","R/U/S","Durchsatz","Nullperiodenanteil über Wahrscheinlichkeit","Nullperiodenanteil aus Aufträgen","X/Y/Z","maximale positive Lieferterminabweichung Rohmaterial","U/V/W","ABC","RUS","XYZ","UVW","Eigene","ABC/RUS","ABC/XYZ","ABC/UVW","ABC/Eigene","RUS/XYZ","RUS/UVW","RUS/Eigene","XYZ/UVW","XYZ/Eigene","UVW/Eigene","ABC/RUS/XYZ","ABC/RUS/UVW","ABC/RUS/Eigene","ABC/XYZ/UVW","ABC/XYZ/Eigene","ABC/UVW/Eigene","RUS/XYZ/UVW","RUS/XYZ/Eigene","RUS/UVW/Eigene","XYZ/UVW/Eigene","ABC","RUS","XYZ","UVW"]

{"sheet":"Klassifizierung_positiv","index":47,"n_rows":2,"n_cols":48,"rows_kept":2,"cut":false,"hidden":true,"merged":[[0,19,0,23],[0,24,0,43],[0,44,0,47],[0,0,1,0],[0,1,0,4],[0,5,0,8],[0,9,0,12],[0,13,0,16],[0,17,0,18]]}
["Produkt","Auswertung",null,null,null,"ABC-Analyse",null,null,null,"RUS-Analyse",null,null,null,"XYZ-Analyse",null,null,null,"UVW-Analyse",null,"Eingabe",null,null,null,null,"Kombinationsmöglichkeiten",null,null,null,null,null,null,null,null,null,null,null,null,null,null,null,null,null,null,null,"Auswahl"]
[null,"Sortieren","Menge ","Mengenanteil","Verkaufspreis","Umsatz","Umsatzanteil","kumulierter Umsatzanteil","A/B/C","mittlere Bestellmenge","Standardabweichung","Variationskoeffizient","R/U/S","Durchsatz","Nullperiodenanteil über Wahrscheinlichkeit","Nullperiodenanteil aus Aufträgen","X/Y/Z","maximale negative Lieferterminabweichung Rohmaterial","U/V/W","ABC","RUS","XYZ","UVW","Eigene","ABC/RUS","ABC/XYZ","ABC/UVW","ABC/Eigene","RUS/XYZ","RUS/UVW","RUS/Eigene","XYZ/UVW","XYZ/Eigene","UVW/Eigene","ABC/RUS/XYZ","ABC/RUS/UVW","ABC/RUS/Eigene","ABC/XYZ/UVW","ABC/XYZ/Eigene","ABC/UVW/Eigene","RUS/XYZ/UVW","RUS/XYZ/Eigene","RUS/UVW/Eigene","XYZ/UVW/Eigene","ABC","RUS","XYZ","UVW"]

{"sheet":"Klassifizierung_negativ","index":48,"n_rows":2,"n_cols":48,"rows_kept":2,"cut":false,"hidden":true,"merged":[[0,19,0,23],[0,24,0,43],[0,44,0,47],[0,0,1,0],[0,1,0,4],[0,5,0,8],[0,9,0,12],[0,13,0,16],[0,17,0,18]]}
["Produkt","Auswertung",null,null,null,"ABC-Analyse",null,null,null,"RUS-Analyse",null,null,null,"XYZ-Analyse",null,null,null,"UVW-Analyse",null,"Eingabe",null,null,null,null,"Kombinationsmöglichkeiten",null,null,null,null,null,null,null,null,null,null,null,null,null,null,null,null,null,null,null,"Auswahl"]
[null,"Sortieren","Menge ","Mengenanteil","Verkaufspreis","Umsatz","Umsatzanteil","kumulierter Umsatzanteil","A/B/C","mittlere Bestellmenge","Standardabweichung","Variationskoeffizient","R/U/S","Durchsatz","Nullperiodenanteil über Wahrscheinlichkeit","Nullperiodenanteil aus Aufträgen","X/Y/Z","maximale negative Lieferterminabweichung Rohmaterial","U/V/W","ABC","RUS","XYZ","UVW","Eigene","ABC/RUS","ABC/XYZ","ABC/UVW","ABC/Eigene","RUS/XYZ","RUS/UVW","RUS/Eigene","XYZ/UVW","XYZ/Eigene","UVW/Eigene","ABC/RUS/XYZ","ABC/RUS/UVW","ABC/RUS/Eigene","ABC/XYZ/UVW","ABC/XYZ/Eigene","ABC/UVW/Eigene","RUS/XYZ/UVW","RUS/XYZ/Eigene","RUS/UVW/Eigene","XYZ/UVW/Eigene","ABC","RUS","XYZ","UVW"]

{"sheet":"Kostenvergleich","index":49,"n_rows":6,"n_cols":161,"rows_kept":6,"cut":false,"hidden":true,"merged":[[0,67,0,70],[0,31,0,33],[0,34,0,36],[0,37,0,39],[0,40,0,48],[0,49,0,51],[0,52,0,54],[0,55,0,56],[0,57,0,60],[0,61,0,62],[0,63,0,64],[0,27,0,28],[0,29,0,30],[0,0,1,0],[0,1,0,7],[0,8,0,17],[0,18,0,23],[0,24,0,26]]}
["Produkt","Kosten MTS",null,null,null,null,null,null,"Kosten ATO",null,null,null,null,null,null,null,null,null,"Kosten MTO",null,null,null,null,null,"Gesamtkosten",null,null,"Feste Strategie",null,"Ausschluss",null,"MTS möglich?",null,null," ATO möglich?",null,null," MTO möglich?",null,null,"Ergebnis",null,null,null,null,null,null,null,null,"Mögliche Reduzierungen",null,null,"Strategie möglich?",null,null,"Zusätzlicher Steuerungsaufwand",null,"Ursprünglich",null,null,null,"Benötiger Lagerbedarf",null,"Steuerung",null,"Ursprünglich"]
[null,"Lagerkosten FWL","Kapitalbindungskosten FWL","Wagniskosten FWL","Lieferverzugskosten FWL","Lagerkosten RML","Kapitalbindungskosten RML","Rüstkosten (vor KEP)","Lagerskosten VL","Kapitalbindungskosten VL","Lieferverzugskosten VL","Lagerkosten HFL","Kapitalbindungskosten HFL","Wagniskosten HFL","Lagerkosten RML","Kapitalbindungskosten RML","Rüstkosten (vor KEP)","Rüstkosten (nach KEP)","Lagerkosten VL","Kapitalbindungskosten VL","Lieferverzugskosten VL","Lagerkosten RML","Kapitalbindungskosten RML","Rüstkosten (nach KEP)","MTS","ATO","MTO","Artikel","Artikelklasse","Artikel","Artikelklasse","Artikel","Artikelklasse","Haltbarkeit","Artikel","Artikelklasse","Lieferzeit","Artikel","Artikelklasse","Lieferzeit","Strategie","Gesamtkosten","Bestandskosten","Rüstkosten","Lieferverzugkosten","RML","HFL","FWL","VL","MTS","ATO","MTO","MTS","ATO","MTO","ATO","MTO","Strategie","Bestandskosten","Rüstkosten","Lieferverzugkosten","Maximal","Mittel","Vor","Neu","Gesamtkosten"]
[]
[null,null,null,null,null,null,null,null,null,null,null,null,null,null,null,null,null,null,null,null,null,null,null,null,null,null,null,null,null,null,null,null,null,null,null,null,null,null,null,null,null,null,null,null,null,null,null,null,null,null,null,null,null,null,null,null,null,null,null,null,null,null,null,null,null,null,null,null,null,null,null,null,null,null,null,null,null,null,null,null,null,null,null,null,null,null,null,null,null,null,null,null,null,null,null,null,null,null,null,null,null,null,null,null,null,null,null,null,null,null,null,null,null,null,null,null,null,null,null,null,null,null,null,null,null,null,null,null,null,null,null,null,null,null,null,null,null,null,null,null,null,null,null,null,null,null,null,null,null,null,null,null,null,null,null,null,null,null,null,0,0]
[null,null,null,null,null,null,null,null,null,null,null,null,null,null,null,null,null,null,null,null,null,null,null,null,null,null,null,null,null,null,null,null,null,null,null,null,null,null,null,null,null,null,null,null,null,null,null,null,null,null,null,null,null,null,null,null,null,null,null,null,null,null,null,null,null,null,null,null,null,null,null,null,null,null,null,null,null,null,null,null,null,null,null,null,null,null,null,null,null,null,null,null,null,null,null,null,null,null,null,null,null,null,null,null,null,null,null,null,null,null,null,null,null,null,null,null,null,null,null,null,null,null,null,null,null,null,null,null,null,null,null,null,null,null,null,null,null,null,null,null,null,null,null,null,null,null,null,null,null,null,null,null,null,null,null,null,null,null,null,0,0]
[null,null,null,null,null,null,null,null,null,null,null,null,null,null,null,null,null,null,null,null,null,null,null,null,null,null,null,null,null,null,null,null,null,null,null,null,null,null,null,null,null,null,null,null,null,null,null,null,null,null,null,null,null,null,null,null,null,null,null,null,null,null,null,null,null,null,null,null,null,null,null,null,null,null,null,null,null,null,null,null,null,null,null,null,null,null,null,null,null,null,null,null,null,null,null,null,null,null,null,null,null,null,null,null,null,null,null,null,null,null,null,null,null,null,null,null,null,null,null,null,null,null,null,null,null,null,null,null,null,null,null,null,null,null,null,null,null,null,null,null,null,null,null,null,null,null,null,null,null,null,null,null,null,null,null,null,null,null,null,0,0]

{"sheet":"Kostenvergleich_positiv","index":50,"n_rows":2,"n_cols":58,"rows_kept":2,"cut":false,"hidden":true,"merged":[[0,27,0,28],[0,0,1,0],[0,1,0,7],[0,8,0,17],[0,18,0,23],[0,24,0,26],[0,52,0,54],[0,62,0,67],[0,68,0,71],[0,29,0,30],[0,31,0,33],[0,34,0,36],[0,37,0,39],[0,40,0,48],[0,49,0,51],[0,55,0,57]]}
["Produkt","Kosten MTS",null,null,null,null,null,null,"Kosten ATO",null,null,null,null,null,null,null,null,null,"Kosten MTO",null,null,null,null,null,"Gesamtkosten",null,null,"Feste Strategie",null,"Ausschluss",null,"MTS möglich?",null,null," ATO möglich?",null,null," MTO möglich?",null,null,"Ergebnis",null,null,null,null,null,null,null,null,"Mögliche Reduzierungen",null,null,"Strategie möglich?",null,null,"Zusätzlicher Steuerungsaufwand"]
[null,"Lagerkosten FWL","Kapitalbindungskosten FWL","Wagniskosten FWL","Lieferverzugskosten FWL","Lagerkosten RML","Kapitalbindungskosten RML","Rüstkosten (vor KEP)","Lagerskosten VL","Kapitalbindungskosten VL","Lieferverzugskosten VL","Lagerkosten HFL","Kapitalbindungskosten HFL","Wagniskosten HFL","Lagerkosten RML","Kapitalbindungskosten RML","Rüstkosten (vor KEP)","Rüstkosten (nach KEP)","Lagerkosten VL","Kapitalbindungskosten VL","Lieferverzugskosten VL","Lagerkosten RML","Kapitalbindungskosten RML","Rüstkosten (nach KEP)","MTS","ATO","MTO","Artikel","Artikelklasse","Artikel","Artikelklasse","Artikel","Artikelklasse","Haltbarkeit","Artikel","Artikelklasse","Lieferzeit","Artikel","Artikelklasse","Lieferzeit","Strategie","Gesamtkosten","Bestandskosten","Rüstkosten","Lieferverzugkosten","RML","HFL","FWL","VL","MTS","ATO","MTO","MTS","ATO","MTO","ATO","MTO","Gesamt"]

{"sheet":"Kostenvergleich_negativ","index":51,"n_rows":2,"n_cols":58,"rows_kept":2,"cut":false,"hidden":true,"merged":[[0,27,0,28],[0,0,1,0],[0,1,0,7],[0,8,0,17],[0,18,0,23],[0,24,0,26],[0,52,0,54],[0,62,0,67],[0,68,0,71],[0,29,0,30],[0,31,0,33],[0,34,0,36],[0,37,0,39],[0,40,0,48],[0,49,0,51],[0,55,0,57]]}
["Produkt","Kosten MTS",null,null,null,null,null,null,"Kosten ATO",null,null,null,null,null,null,null,null,null,"Kosten MTO",null,null,null,null,null,"Gesamtkosten",null,null,"Feste Strategie",null,"Ausschluss",null,"MTS möglich?",null,null," ATO möglich?",null,null," MTO möglich?",null,null,"Ergebnis",null,null,null,null,null,null,null,null,"Mögliche Reduzierungen",null,null,"Strategie möglich?",null,null,"Zusätzlicher Steuerungsaufwand"]
[null,"Lagerkosten FWL","Kapitalbindungskosten FWL","Wagniskosten FWL","Lieferverzugskosten FWL","Lagerkosten RML","Kapitalbindungskosten RML","Rüstkosten (vor KEP)","Lagerskosten VL","Kapitalbindungskosten VL","Lieferverzugskosten VL","Lagerkosten HFL","Kapitalbindungskosten HFL","Wagniskosten HFL","Lagerkosten RML","Kapitalbindungskosten RML","Rüstkosten (vor KEP)","Rüstkosten (nach KEP)","Lagerkosten VL","Kapitalbindungskosten VL","Lieferverzugskosten VL","Lagerkosten RML","Kapitalbindungskosten RML","Rüstkosten (nach KEP)","MTS","ATO","MTO","Artikel","Artikelklasse","Artikel","Artikelklasse","Artikel","Artikelklasse","Haltbarkeit","Artikel","Artikelklasse","Lieferzeit","Artikel","Artikelklasse","Lieferzeit","Strategie","Gesamtkosten","Bestandskosten","Rüstkosten","Lieferverzugkosten","RML","HFL","FWL","VL","MTS","ATO","MTO","MTS","ATO","MTO","ATO","MTO","Differenz"]

{"sheet":"Belastungsflexibilität","index":52,"n_rows":1,"n_cols":3,"rows_kept":1,"cut":false,"hidden":false,"merged":[]}
["Produkt","Arbeitsinhalt","Einheit"]

{"sheet":"Auswertung_BelaFlex","index":53,"n_rows":1,"n_cols":18,"rows_kept":1,"cut":false,"hidden":true,"merged":[[0,19,0,26]]}
["Produkt","Arbeitsinhalt im Betrachtungszeitraum","Kostenoptimale AAS","Kosten der kostenoptimalen AAS","MTS möglich?","ATO möglich?","Bereits entkoppelt?","Entkoppelbar durch Wechsel der AAS auf ATO","Entkoppelbar durch Wechsel der AAS auf MTS","Kosten ATO","Kosten MTS","Günstigere, mögliche AAS zur Entkopplung","Kosten der günstigeren AAS","Mehrkosten, um das Arbeitssystem zu entkoppeln","Mehrkosten pro Anteil am Arbeitsinhalt","Zähler zum Sortieren","Rang","Anteil [%]"]

{"sheet":"Rollierend_gewichtet","index":54,"n_rows":1,"n_cols":1,"rows_kept":1,"cut":false,"hidden":true,"merged":[]}
["Produkt/Datum"]

{"sheet":"Zwischenspeicher","index":55,"n_rows":56,"n_cols":189,"rows_kept":56,"cut":false,"hidden":true,"merged":[[0,89,0,138],[0,139,0,188],[0,12,0,88],[29,74,55,74],[1,14,1,15],[1,17,1,18],[1,20,1,21],[1,26,1,27],[1,29,1,30],[1,32,1,33],[1,80,1,81],[1,71,1,72],[1,65,1,66],[1,59,1,60],[1,53,1,54],[1,47,1,48],[1,38,1,39],[1,23,1,24],[5,26,7,26],[2,14,4,14],[5,14,7,14],[2,17,4,17],[5,17,7,17],[2,20,4,20],[5,20,7,20],[2,26,4,26],[2,23,4,23],[5,23,7,23],[2,29,10,29],[1,35,1,36],[11,29,19,29],[2,32,10,32],[11,32,19,32],[2,38,10,38],[11,38,19,38],[2,35,10,35],[11,35,19,35],[1,44,1,45],[2,44,10,44],[11,44,19,44],[11,41,19,41],[2,83,28,83],[2,47,10,47],[11,47,19,47],[2,53,10,53],[11,53,19,53],[2,41,10,41],[1,41,1,42],[29,83,55,83],[1,50,1,51],[2,50,10,50],[11,50,19,50],[1,62,1,63],[2,62,28,62],[2,59,28,59],[1,56,1,57],[29,59,55,59],[2,65,28,65],[29,65,55,65],[29,62,55,62],[2,56,10,56],[11,56,19,56],[1,86,1,87],[2,86,28,86],[29,86,55,86],[1,68,1,69],[2,68,28,68],[29,68,55,68],[1,77,1,78],[2,77,28,77],[29,77,55,77],[2,71,28,71],[29,71,55,71],[2,80,28,80],[29,80,55,80],[1,74,1,75],[2,74,28,74],[1,83,1,84]]}
["Klassifizierung","Grenzen",null,"Losgrößenberechnung","Werte",null,"Konfiguration","Werte",null,"Module","Durchgeführt",null,"Zielgrößen",null,null,null,null,null,null,null,null,null,null,null,null,null,null,null,null,null,null,null,null,null,null,null,null,null,null,null,null,null,null,null,null,null,null,null,null,null,null,null,null,null,null,null,null,null,null,null,null,null,null,null,null,null,null,null,null,null,null,null,null,null,null,null,null,null,null,null,null,null,null,null,null,null,null,null,null,"Fest",null,null,null,null,null,null,null,null,null,null,null,null,null,null,null,null,null,null,null,null,null,null,null,null,null,null,null,null,null,null,null,null,null,null,null,null,null,null,null,null,null,null,null,null,null,null,null,null,null,"Ausschluss"]
["A","-",null,"Lagerkostensatz ",0,null,"Produktionsstufen",null,null,"ABC","Nein",null,"Allgemein","Nein","ABC",null,"Nein","RUS",null,"Nein","XYZ",null,"Nein","UVW",null,"Nein","Eigene",null,"Nein","ABC/RUS",null,"Nein","ABC/XYZ",null,"Nein","ABC/UVW",null,"Nein","ABC/Eigene",null,"Nein","RUS/XYZ",null,"Nein","RUS/UVW",null,"Nein","RUS/Eigene",null,"Nein","XYZ/UVW",null,"Nein","XYZ/Eigene",null,"Nein","UVW/Eigene",null,"Nein","ABC/RUS/XYZ",null,"Nein","ABC/RUS/UVW",null,"Nein","ABC/RUS/Eigene",null,"Nein","ABC/XYZ/UVW",null,"Nein","ABC/XYZ/Eigene",null,"Nein","ABC/UVW/Eigene",null,"Nein","RUS/XYZ/UVW",null,"Nein","RUS/XYZ/Eigene",null,"Nein","RUS/UVW/Eigene",null,"Nein","XYZ/UVW/Eigene",null,"Nein","ABC","Nein","RUS","Nein","XYZ","Nein","UVW","Nein","Eigene","Nein","ABC/RUS","Nein","ABC/XYZ","Nein","ABC/UVW","Nein","ABC/Eigene","Nein","RUS/XYZ","Nein","RUS/UVW","Nein","RUS/Eigene","Nein","XYZ/UVW","Nein","XYZ/Eigene","Nein","UVW/Eigene","Nein","ABC/RUS/XYZ","Nein","ABC/RUS/UVW","Nein","ABC/RUS/Eigene","Nein","ABC/XYZ/UVW","Nein","ABC/XYZ/Eigene","Nein","ABC/UVW/Eigene","Nein","RUS/XYZ/UVW","Nein","RUS/XYZ/Eigene","Nein","RUS/UVW/Eigene","Nein","XYZ/UVW/Eigene","Nein","ABC","Nein","RUS","Nein","XYZ","Nein","UVW","Nein","Eigene","Nein","ABC/RUS","Nein","ABC/XYZ","Nein","ABC/UVW","Nein","ABC/Eigene","Nein","RUS/XYZ","Nein","RUS/UVW","Nein","RUS/Eigene","Nein","XYZ/UVW","Nein","XYZ/Eigene","Nein","UVW/Eigene","Nein","ABC/RUS/XYZ","Nein","ABC/RUS/UVW","Nein","ABC/RUS/Eigene","Nein","ABC/XYZ/UVW","Nein","ABC/XYZ/Eigene","Nein","ABC/UVW/Eigene","Nein","RUS/XYZ/UVW","Nein","RUS/XYZ/Eigene","Nein","RUS/UVW/Eigene","Nein","XYZ/UVW/Eigene","Nein"]
["B","-",null,"Logistikfaktor","-",null,"KEP (nach) Stufe",null,null,"RUS","Nein",null,"TE",null,"TE","A",null,"TE","R",null,"TE","X",null,"TE","U",null,"TE","E_eins",null,"TE","AR",null,"TE","AX",null,"TE","AU",null,"TE","AE_eins",null,null,"RX",null,"TE","RU",null,"TE","RE_eins",null,"TE","XU",null,"TE","XE_eins",null,"TE","UE_eins",null,"TE","ARX",null,"TE","ARU",null,"TE","ARE_eins",null,"TE","AXU",null,"TE","AXE_eins",null,"TE","AUE_eins",null,"TE","RXU",null,"TE","RXE_eins",null,"TE","RUE_eins",null,"TE","XUE_eins",null,"A",null,"R",null,"X",null,"X",null,"E_eins",null,"AR",null,"AX",null,"AU",null,"AE_eins",null,"RX",null,"RU",null,"RE_eins",null,"XU",null,"XE_eins",null,"UE_eins",null,"ARX",null,"ARU",null,"ARE_eins",null,"AXU",null,"AXE_eins",null,"AUE_eins",null,"RXU",null,"RXE_eins",null,"RUE_eins",null,"XUE_eins",null,"A",null,"R",null,"X",null,"X",null,"E_eins",null,"AR",null,"AX",null,"AU",null,"AE_eins",null,"RX",null,"RU",null,"RE_eins",null,"XU",null,"XE_eins",null,"UE_eins",null,"ARX",null,"ARU",null,"ARE_eins",null,"AXU",null,"AXE_eins",null,"AUE_eins",null,"RXU",null,"RXE_eins",null,"RUE_eins",null,"XUE_eins"]
["C",1,null,null,null,null,"Tage",null,null,"XYZ","Nein",null,"SG",null,null,"B",null,null,"U",null,null,"Y",null,null,"V",null,null,"E_zwei",null,null,"AU",null,null,"AY",null,null,"AV",null,null,"AE_zwei",null,null,"RY",null,null,"RV",null,null,"RE_zwei",null,null,"XV",null,null,"XE_zwei",null,null,"UE_zwei",null,null,"ARY",null,null,"ARV",null,null,"ARE_zwei",null,null,"AXV",null,null,"AXE_zwei",null,null,"AUE_zwei",null,null,"RXV",null,null,"RXE_zwei",null,null,"RUE_zwei",null,null,"XUE_zwei",null,"B",null,"U",null,"Y",null,"Y",null,"E_zwei",null,"AU",null,"AY",null,"AV",null,"AE_zwei",null,"RY",null,"RV",null,"RE_zwei",null,"XV",null,"XE_zwei",null,"UE_zwei",null,"ARY",null,"ARV",null,"ARE_zwei",null,"AXV",null,"AXE_zwei",null,"AUE_zwei",null,"RXV",null,"RXE_zwei",null,"RUE_zwei",null,"XUE_zwei",null,"B",null,"U",null,"Y",null,"Y",null,"E_zwei",null,"AU",null,"AY",null,"AV",null,"AE_zwei",null,"RY",null,"RV",null,"RE_zwei",null,"XV",null,"XE_zwei",null,"UE_zwei",null,"ARY",null,"ARV",null,"ARE_zwei",null,"AXV",null,"AXE_zwei",null,"AUE_zwei",null,"RXV",null,"RXE_zwei",null,"RUE_zwei",null,"XUE_zwei"]
[null,null,null,"Bestandsdimensionierung",null,null,"Arbeitstage Stufe 1",null,null,"UVW","Nein",null,null,null,null,"C",null,null,"S",null,null,"Z",null,null,"W",null,null,"E_drei",null,null,"AS",null,null,"AZ",null,null,"AW",null,null,"AE_drei",null,null,"RZ",null,null,"RW",null,null,"RE_drei",null,null,"XW",null,null,"XE_drei",null,null,"UE_drei",null,null,"ARZ",null,null,"ARW",null,null,"ARE_drei",null,null,"AXW",null,null,"AXE_drei",null,null,"AUE_drei",null,null,"RXW",null,null,"RXE_drei",null,null,"RUE_drei",null,null,"XUE_drei",null,"C",null,"S",null,"Z",null,"Z",null,"E_drei",null,"AS",null,"AZ",null,"AW",null,"AE_drei",null,"RZ",null,"RW",null,"RE_drei",null,"XW",null,"XE_drei",null,"UE_drei",null,"ARZ",null,"ARW",null,"ARE_drei",null,"AXW",null,"AXE_drei",null,"AUE_drei",null,"RXW",null,"RXE_drei",null,"RUE_drei",null,"XUE_drei",null,"C",null,"S",null,"Z",null,"Z",null,"E_drei",null,"AS",null,"AZ",null,"AW",null,"AE_drei",null,"RZ",null,"RW",null,"RE_drei",null,"XW",null,"XE_drei",null,"UE_drei",null,"ARZ",null,"ARW",null,"ARE_drei",null,"AXW",null,"AXE_drei",null,"AUE_drei",null,"RXW",null,"RXE_drei",null,"RUE_drei",null,"XUE_drei"]
["R",0,null,"C-Wert",0.33,null,"Stunden/Arbeitstag Stufe 1",null,null,"Losgrößenberechnung","Nein",null,null,null,"SG","A",null,"SG","R",null,"SG","X",null,"SG","U",null,"SG","E_eins",null,null,"BR",null,null,"BX",null,null,"BU",null,null,"BE_eins",null,null,"UX",null,null,"UU",null,null,"UE_eins",null,null,"YU",null,null,"YE_eins",null,null,"VE_eins",null,null,"AUX",null,null,"AUU",null,null,"AUE_eins",null,null,"AYU",null,null,"AYE_eins",null,null,"AVE_eins",null,null,"RYU",null,null,"RYE_eins",null,null,"RVE_eins",null,null,"XVE_eins",null,null,null,null,null,null,null,null,null,null,null,"BR",null,"BX",null,"BU",null,"BE_eins",null,"UX",null,"UU",null,"UE_eins",null,"YU",null,"YE_eins",null,"VE_eins",null,"AUX",null,"AUU",null,"AUE_eins",null,"AYU",null,"AYE_eins",null,"AVE_eins",null,"RYU",null,"RYE_eins",null,"RVE_eins",null,"XVE_eins",null,null,null,null,null,null,null,null,null,null,null,"BR",null,"BX",null,"BU",null,"BE_eins",null,"UX",null,"UU",null,"UE_eins",null,"YU",null,"YE_eins",null,"VE_eins",null,"AUX",null,"AUU",null,"AUE_eins",null,"AYU",null,"AYE_eins",null,"AVE_eins",null,"RYU",null,"RYE_eins",null,"RVE_eins",null,"XVE_eins"]
["U","-",null,"Kapitalbindugskostensatz",0,null,"Arbeitstage Stufe 2",null,null,"Strategie","Nein",null,null,null,null,"B",null,null,"U",null,null,"Y",null,null,"V",null,null,"E_zwei",null,null,"BU",null,null,"BY",null,null,"BV",null,null,"BE_zwei",null,null,"UY",null,null,"UV",null,null,"UE_zwei",null,null,"YV",null,null,"YE_zwei",null,null,"VE_zwei",null,null,"AUY",null,null,"AUV",null,null,"AUE_zwei",null,null,"AYV",null,null,"AYE_zwei",null,null,"AVE_zwei",null,null,"RYV",null,null,"RYE_zwei",null,null,"RVE_zwei",null,null,"XVE_zwei",null,null,null,null,null,null,null,null,null,null,null,"BU",null,"BY",null,"BV",null,"BE_zwei",null,"UY",null,"UV",null,"UE_zwei",null,"YV",null,"YE_zwei",null,"VE_zwei",null,"AUY",null,"AUV",null,"AUE_zwei",null,"AYV",null,"AYE_zwei",null,"AVE_zwei",null,"RYV",null,"RYE_zwei",null,"RVE_zwei",null,"XVE_zwei",null,null,null,null,null,null,null,null,null,null,null,"BU",null,"BY",null,"BV",null,"BE_zwei",null,"UY",null,"UV",null,"UE_zwei",null,"YV",null,"YE_zwei",null,"VE_zwei",null,"AUY",null,"AUV",null,"AUE_zwei",null,"AYV",null,"AYE_zwei",null,"AVE_zwei",null,"RYV",null,"RYE_zwei",null,"RVE_zwei",null,"XVE_zwei"]
["S","-",null,null,null,null,"Stunden/Arbeitstag Stufe 2",null,null,"Vorab","Nein",null,null,null,null,"C",null,null,"S",null,null,"Z",null,null,"W",null,null,"E_drei",null,null,"BS",null,null,"BZ",null,null,"BW",null,null,"BE_drei",null,null,"UZ",null,null,"UW",null,null,"UE_drei",null,null,"YW",null,null,"YE_drei",null,null,"VE_drei",null,null,"AUZ",null,null,"AUW",null,null,"AUE_drei",null,null,"AYW",null,null,"AYE_drei",null,null,"AVE_drei",null,null,"RYW",null,null,"RYE_drei",null,null,"RVE_drei",null,null,"XVE_drei",null,null,null,null,null,null,null,null,null,null,null,"BS",null,"BZ",null,"BW",null,"BE_drei",null,"UZ",null,"UW",null,"UE_drei",null,"YW",null,"YE_drei",null,"VE_drei",null,"AUZ",null,"AUW",null,"AUE_drei",null,"AYW",null,"AYE_drei",null,"AVE_drei",null,"RYW",null,"RYE_drei",null,"RVE_drei",null,"XVE_drei",null,null,null,null,null,null,null,null,null,null,null,"BS",null,"BZ",null,"BW",null,"BE_drei",null,"UZ",null,"UW",null,"UE_drei",null,"YW",null,"YE_drei",null,"VE_drei",null,"AUZ",null,"AUW",null,"AUE_drei",null,"AYW",null,"AYE_drei",null,"AVE_drei",null,"RYW",null,"RYE_drei",null,"RVE_drei",null,"XVE_drei"]
[null,null,null,"Konfiguration","Nein",null,"Arbeitstage Stufe 3",null,null,null,null,null,null,null,null,null,null,null,null,null,null,null,null,null,null,null,null,null,null,null,"CR",null,null,"CX",null,null,"CU",null,null,"CE_eins",null,null,"SX",null,null,"SU",null,null,"SE_eins",null,null,"ZU",null,null,"ZE_eins",null,null,"WE_eins",null,null,"ASX",null,null,"ASU",null,null,"ASE_eins",null,null,"AZU",null,null,"AZE_eins",null,null,"AWE_eins",null,null,"RZU",null,null,"RZE_eins",null,null,"RWE_eins",null,null,"XWE_eins",null,null,null,null,null,null,null,null,null,null,null,"CR",null,"CX",null,"CU",null,"CE_eins",null,"SX",null,"SU",null,"SE_eins",null,"ZU",null,"ZE_eins",null,"WE_eins",null,"ASX",null,"ASU",null,"ASE_eins",null,"AZU",null,"AZE_eins",null,"AWE_eins",null,"RZU",null,"RZE_eins",null,"RWE_eins",null,"XWE_eins",null,null,null,null,null,null,null,null,null,null,null,"CR",null,"CX",null,"CU",null,"CE_eins",null,"SX",null,"SU",null,"SE_eins",null,"ZU",null,"ZE_eins",null,"WE_eins",null,"ASX",null,"ASU",null,"ASE_eins",null,"AZU",null,"AZE_eins",null,"AWE_eins",null,"RZU",null,"RZE_eins",null,"RWE_eins",null,"XWE_eins"]
["X","-",null,"Daten","Nein",null,"Stunden/Arbeitstag Stufe 3",null,null," Perioden RUS",{"$f":"IF(K11=\"Ja\",J11,IF(K12=\"Ja\",J12,IF(K13=\"Ja\",J13,IF(K14=\"Ja\",J14,\"Nichts\"))))","v":"Nichts"},null,"Anzeigen","Nein",null,null,null,null,null,null,null,null,null,null,null,null,null,null,null,null,"CU",null,null,"CY",null,null,"CV",null,null,"CE_zwei",null,null,"SY",null,null,"SV",null,null,"SE_zwei",null,null,"ZV",null,null,"ZE_zwei",null,null,"WE_zwei",null,null,"ASY",null,null,"ASV",null,null,"ASE_zwei",null,null,"AZV",null,null,"AZE_zwei",null,null,"AWE_zwei",null,null,"RZV",null,null,"RZE_zwei",null,null,"RWE_zwei",null,null,"XWE_zwei",null,null,null,null,null,null,null,null,null,null,null,"CU",null,"CY",null,"CV",null,"CE_zwei",null,"SY",null,"SV",null,"SE_zwei",null,"ZV",null,"ZE_zwei",null,"WE_zwei",null,"ASY",null,"ASV",null,"ASE_zwei",null,"AZV",null,"AZE_zwei",null,"AWE_zwei",null,"RZV",null,"RZE_zwei",null,"RWE_zwei",null,"XWE_zwei",null,null,null,null,null,null,null,null,null,null,null,"CU",null,"CY",null,"CV",null,"CE_zwei",null,"SY",null,"SV",null,"SE_zwei",null,"ZV",null,"ZE_zwei",null,"WE_zwei",null,"ASY",null,"ASV",null,"ASE_zwei",null,"AZV",null,"AZE_zwei",null,"AWE_zwei",null,"RZV",null,"RZE_zwei",null,"RWE_zwei",null,"XWE_zwei"]
["Y","-",null,null,null,null,"Arbeitstage Stufe 4",null,null,"Tage","Nein",null,"Bestand RML",null,null,null,null,null,null,null,null,null,null,null,null,null,null,null,null,null,"CS",null,null,"CZ",null,null,"CW",null,null,"CE_drei",null,null,"SZ",null,null,"SW",null,null,"SE_drei",null,null,"ZW",null,null,"ZE_drei",null,null,"WE_drei",null,null,"ASZ",null,null,"ASW",null,null,"ASE_drei",null,null,"AZW",null,null,"AZE_drei",null,null,"AWE_drei",null,null,"RZW",null,null,"RZE_drei",null,null,"RWE_drei",null,null,"XWE_drei",null,null,null,null,null,null,null,null,null,null,null,"CS",null,"CZ",null,"CW",null,"CE_drei",null,"SZ",null,"SW",null,"SE_drei",null,"ZW",null,"ZE_drei",null,"WE_drei",null,"ASZ",null,"ASW",null,"ASE_drei",null,"AZW",null,"AZE_drei",null,"AWE_drei",null,"RZW",null,"RZE_drei",null,"RWE_drei",null,"XWE_drei",null,null,null,null,null,null,null,null,null,null,null,"CS",null,"CZ",null,"CW",null,"CE_drei",null,"SZ",null,"SW",null,"SE_drei",null,"ZW",null,"ZE_drei",null,"WE_drei",null,"ASZ",null,"ASW",null,"ASE_drei",null,"AZW",null,"AZE_drei",null,"AWE_drei",null,"RZW",null,"RZE_drei",null,"RWE_drei",null,"XWE_drei"]
["Z",1,null,"Nachfrageschwankung",null,null,"Stunden/Arbeitstag Stufe 4",null,null,"Wochen","Nein",null,"Bestand HFL",null,null,null,null,null,null,null,null,null,null,null,null,null,null,null,null,"SG","AR",null,"SG","AX",null,"SG","AU",null,"SG","AE_eins",null,"SG","RX",null,"SG","RU",null,"SG","RE_eins",null,"SG","XU",null,"SG","XE_eins",null,"SG","UE_eins",null,null,"BRX",null,null,"BRU",null,null,"BRE_eins",null,null,"BXU",null,null,"BXE_eins",null,null,"BUE_eins",null,null,"UXU",null,null,"UXE_eins",null,null,"UUE_eins",null,null,"YUE_eins",null,null,null,null,null,null,null,null,null,null,null,null,null,null,null,null,null,null,null,null,null,null,null,null,null,null,null,null,null,null,null,"BRX",null,"BRU",null,"BRE_eins",null,"BXU",null,"BXE_eins",null,"BUE_eins",null,"UXU",null,"UXE_eins",null,"UUE_eins",null,"YUE_eins",null,null,null,null,null,null,null,null,null,null,null,null,null,null,null,null,null,null,null,null,null,null,null,null,null,null,null,null,null,null,null,"BRX",null,"BRU",null,"BRE_eins",null,"BXU",null,"BXE_eins",null,"BUE_eins",null,"UXU",null,"UXE_eins",null,"UUE_eins",null,"YUE_eins"]
[null,null,null,"Prozent",null,null,"Arbeitstage Stufe 5",null,null,"Monate ","Nein",null,"Bestand FWL",null,null,null,null,null,null,null,null,null,null,null,null,null,null,null,null,null,"AU",null,null,"AY",null,null,"AV",null,null,"AE_zwei",null,null,"RY",null,null,"RV",null,null,"RE_zwei",null,null,"XV",null,null,"XE_zwei",null,null,"UE_zwei",null,null,"BRY",null,null,"BRV",null,null,"BRE_zwei",null,null,"BXV",null,null,"BXE_zwei",null,null,"BUE_zwei",null,null,"UXV",null,null,"UXE_zwei",null,null,"UUE_zwei",null,null,"YUE_zwei",null,null,null,null,null,null,null,null,null,null,null,null,null,null,null,null,null,null,null,null,null,null,null,null,null,null,null,null,null,null,null,"BRY",null,"BRV",null,"BRE_zwei",null,"BXV",null,"BXE_zwei",null,"BUE_zwei",null,"UXV",null,"UXE_zwei",null,"UUE_zwei",null,"YUE_zwei",null,null,null,null,null,null,null,null,null,null,null,null,null,null,null,null,null,null,null,null,null,null,null,null,null,null,null,null,null,null,null,"BRY",null,"BRV",null,"BRE_zwei",null,"BXV",null,"BXE_zwei",null,"BUE_zwei",null,"UXV",null,"UXE_zwei",null,"UUE_zwei",null,"YUE_zwei"]
["U",0,null,null,null,null,"Stunden/Arbeitstag Stufe 5",null,null,"Quartale","Nein",null,"SB RML",null,null,null,null,null,null,null,null,null,null,null,null,null,null,null,null,null,"AS",null,null,"AZ",null,null,"AW",null,null,"AE_drei",null,null,"RZ",null,null,"RW",null,null,"RE_drei",null,null,"XW",null,null,"XE_drei",null,null,"UE_drei",null,null,"BRZ",null,null,"BRW",null,null,"BRE_drei",null,null,"BXW",null,null,"BXE_drei",null,null,"BUE_drei",null,null,"UXW",null,null,"UXE_drei",null,null,"UUE_drei",null,null,"YUE_drei",null,null,null,null,null,null,null,null,null,null,null,null,null,null,null,null,null,null,null,null,null,null,null,null,null,null,null,null,null,null,null,"BRZ",null,"BRW",null,"BRE_drei",null,"BXW",null,"BXE_drei",null,"BUE_drei",null,"UXW",null,"UXE_drei",null,"UUE_drei",null,"YUE_drei",null,null,null,null,null,null,null,null,null,null,null,null,null,null,null,null,null,null,null,null,null,null,null,null,null,null,null,null,null,null,null,"BRZ",null,"BRW",null,"BRE_drei",null,"BXW",null,"BXE_drei",null,"BUE_drei",null,"UXW",null,"UXE_drei",null,"UUE_drei",null,"YUE_drei"]
["V","-",null,"Auftragsdaten",null,null,"Arbeitstage WE",null,null,null,null,null,"SB HFL",null,null,null,null,null,null,null,null,null,null,null,null,null,null,null,null,null,"BR",null,null,"BX",null,null,"BU",null,null,"BE_eins",null,null,"UX",null,null,"UU",null,null,"UE_eins",null,null,"YU",null,null,"YE_eins",null,null,"VE_eins",null,null,"BUX",null,null,"BUU",null,null,"BUE_eins",null,null,"BYU",null,null,"BYE_eins",null,null,"BVE_eins",null,null,"UYU",null,null,"UYE_eins",null,null,"UVE_eins",null,null,"YVE_eins",null,null,null,null,null,null,null,null,null,null,null,null,null,null,null,null,null,null,null,null,null,null,null,null,null,null,null,null,null,null,null,"BUX",null,"BUU",null,"BUE_eins",null,"BYU",null,"BYE_eins",null,"BVE_eins",null,"UYU",null,"UYE_eins",null,"UVE_eins",null,"YVE_eins",null,null,null,null,null,null,null,null,null,null,null,null,null,null,null,null,null,null,null,null,null,null,null,null,null,null,null,null,null,null,null,"BUX",null,"BUU",null,"BUE_eins",null,"BYU",null,"BYE_eins",null,"BVE_eins",null,"UYU",null,"UYE_eins",null,"UVE_eins",null,"YVE_eins"]
["W","-",null,"Jahre",null,null,"Stunden/Arbeitstag WE",null,null," Perioden XYZ",{"$f":"IF(K17=\"Ja\",J17,IF(K18=\"Ja\",J18,IF(K19=\"Ja\",J19,IF(K20=\"Ja\",J20,\"Nichts\"))))","v":"Nichts"},null,"SB FWL",null,null,null,null,null,null,null,null,null,null,null,null,null,null,null,null,null,"BU",null,null,"BY",null,null,"BV",null,null,"BE_zwei",null,null,"UY",null,null,"UV",null,null,"UE_zwei",null,null,"YV",null,null,"YE_zwei",null,null,"VE_zwei",null,null,"BUY",null,null,"BUV",null,null,"BUE_zwei",null,null,"BYV",null,null,"BYE_zwei",null,null,"BVE_zwei",null,null,"UYV",null,null,"UYE_zwei",null,null,"UVE_zwei",null,null,"YVE_zwei",null,null,null,null,null,null,null,null,null,null,null,null,null,null,null,null,null,null,null,null,null,null,null,null,null,null,null,null,null,null,null,"BUY",null,"BUV",null,"BUE_zwei",null,"BYV",null,"BYE_zwei",null,"BVE_zwei",null,"UYV",null,"UYE_zwei",null,"UVE_zwei",null,"YVE_zwei",null,null,null,null,null,null,null,null,null,null,null,null,null,null,null,null,null,null,null,null,null,null,null,null,null,null,null,null,null,null,null,"BUY",null,"BUV",null,"BUE_zwei",null,"BYV",null,"BYE_zwei",null,"BVE_zwei",null,"UYV",null,"UYE_zwei",null,"UVE_zwei",null,"YVE_zwei"]
[null,null,null,"Quartale",null,null,"Arbeitstage WA",null,null,"Tage","Nein",null,"Angezeigt","Nein",null,null,null,null,null,null,null,null,null,null,null,null,null,null,null,null,"BS",null,null,"BZ",null,null,"BW",null,null,"BE_drei",null,null,"UZ",null,null,"UW",null,null,"UE_drei",null,null,"YW",null,null,"YE_drei",null,null,"VE_drei",null,null,"BUZ",null,null,"BUW",null,null,"BUE_drei",null,null,"BYW",null,null,"BYE_drei",null,null,"BVE_drei",null,null,"UYW",null,null,"UYE_drei",null,null,"UVE_drei",null,null,"YVE_drei",null,null,null,null,null,null,null,null,null,null,null,null,null,null,null,null,null,null,null,null,null,null,null,null,null,null,null,null,null,null,null,"BUZ",null,"BUW",null,"BUE_drei",null,"BYW",null,"BYE_drei",null,"BVE_drei",null,"UYW",null,"UYE_drei",null,"UVE_drei",null,"YVE_drei",null,null,null,null,null,null,null,null,null,null,null,null,null,null,null,null,null,null,null,null,null,null,null,null,null,null,null,null,null,null,null,"BUZ",null,"BUW",null,"BUE_drei",null,"BYW",null,"BYE_drei",null,"BVE_drei",null,"UYW",null,"UYE_drei",null,"UVE_drei",null,"YVE_drei"]
["Daten","Nein",null,"Monate",null,null,"Stunden/Arbeitstag WA",null,null,"Wochen","Nein",null,null,null,null,null,null,null,null,null,null,null,null,null,null,null,null,null,null,null,"CR",null,null,"CX",null,null,"CU",null,null,"CE_eins",null,null,"SX",null,null,"SU",null,null,"SE_eins",null,null,"ZU",null,null,"ZE_eins",null,null,"WE_eins",null,null,"BSX",null,null,"BSU",null,null,"BSE_eins",null,null,"BZU",null,null,"BZE_eins",null,null,"BWE_eins",null,null,"UZU",null,null,"UZE_eins",null,null,"UWE_eins",null,null,"YWE_eins",null,null,null,null,null,null,null,null,null,null,null,null,null,null,null,null,null,null,null,null,null,null,null,null,null,null,null,null,null,null,null,"BSX",null,"BSU",null,"BSE_eins",null,"BZU",null,"BZE_eins",null,"BWE_eins",null,"UZU",null,"UZE_eins",null,"UWE_eins",null,"YWE_eins",null,null,null,null,null,null,null,null,null,null,null,null,null,null,null,null,null,null,null,null,null,null,null,null,null,null,null,null,null,null,null,"BSX",null,"BSU",null,"BSE_eins",null,"BZU",null,"BZE_eins",null,"BWE_eins",null,"UZU",null,"UZE_eins",null,"UWE_eins",null,"YWE_eins"]
["Kundenaufträge","Nein",null,"Wochen",null,null,null,null,null,"Monate ","Nein",null,null,null,null,null,null,null,null,null,null,null,null,null,null,null,null,null,null,null,"CU",null,null,"CY",null,null,"CV",null,null,"CE_zwei",null,null,"SY",null,null,"SV",null,null,"SE_zwei",null,null,"ZV",null,null,"ZE_zwei",null,null,"WE_zwei",null,null,"BSY",null,null,"BSV",null,null,"BSE_zwei",null,null,"BZV",null,null,"BZE_zwei",null,null,"BWE_zwei",null,null,"UZV",null,null,"UZE_zwei",null,null,"UWE_zwei",null,null,"YWE_zwei",null,null,null,null,null,null,null,null,null,null,null,null,null,null,null,null,null,null,null,null,null,null,null,null,null,null,null,null,null,null,null,"BSY",null,"BSV",null,"BSE_zwei",null,"BZV",null,"BZE_zwei",null,"BWE_zwei",null,"UZV",null,"UZE_zwei",null,"UWE_zwei",null,"YWE_zwei",null,null,null,null,null,null,null,null,null,null,null,null,null,null,null,null,null,null,null,null,null,null,null,null,null,null,null,null,null,null,null,"BSY",null,"BSV",null,"BSE_zwei",null,"BZV",null,"BZE_zwei",null,"BWE_zwei",null,"UZV",null,"UZE_zwei",null,"UWE_zwei",null,"YWE_zwei"]
["Produktdaten","Nein",null,null,null,null,"Belastungsflexibilität ","Nein",null,"Quartale","Nein",null,null,null,null,null,null,null,null,null,null,null,null,null,null,null,null,null,null,null,"CS",null,null,"CZ",null,null,"CW",null,null,"CE_drei",null,null,"SZ",null,null,"SW",null,null,"SE_drei",null,null,"ZW",null,null,"ZE_drei",null,null,"WE_drei",null,null,"BSZ",null,null,"BSW",null,null,"BSE_drei",null,null,"BZW",null,null,"BZE_drei",null,null,"BWE_drei",null,null,"UZW",null,null,"UZE_drei",null,null,"UWE_drei",null,null,"YWE_drei",null,null,null,null,null,null,null,null,null,null,null,null,null,null,null,null,null,null,null,null,null,null,null,null,null,null,null,null,null,null,null,"BSZ",null,"BSW",null,"BSE_drei",null,"BZW",null,"BZE_drei",null,"BWE_drei",null,"UZW",null,"UZE_drei",null,"UWE_drei",null,"YWE_drei",null,null,null,null,null,null,null,null,null,null,null,null,null,null,null,null,null,null,null,null,null,null,null,null,null,null,null,null,null,null,null,"BSZ",null,"BSW",null,"BSE_drei",null,"BZW",null,"BZE_drei",null,"BWE_drei",null,"UZW",null,"UZE_drei",null,"UWE_drei",null,"YWE_drei"]
["Produktionsdaten","Nein",null,"Angabe Klassifzierung",null,null,"Produktionsstufe","Nein",null,null,null,null,null,null,null,null,null,null,null,null,null,null,null,null,null,null,null,null,null,null,null,null,null,null,null,null,null,null,null,null,null,null,null,null,null,null,null,null,null,null,null,null,null,null,null,null,null,null,null,null,"CRX",null,null,"CRU",null,null,"CRE_eins",null,null,"CXU",null,null,"CXE_eins",null,null,"CUE_eins",null,null,"SXU",null,null,"SXE_eins",null,null,"SUE_eins",null,null,"ZUE_eins",null,null,null,null,null,null,null,null,null,null,null,null,null,null,null,null,null,null,null,null,null,null,null,null,null,null,null,null,null,null,null,"CRX",null,"CRU",null,"CRE_eins",null,"CXU",null,"CXE_eins",null,"CUE_eins",null,"SXU",null,"SXE_eins",null,"SUE_eins",null,"ZUE_eins",null,null,null,null,null,null,null,null,null,null,null,null,null,null,null,null,null,null,null,null,null,null,null,null,null,null,null,null,null,null,null,"CRX",null,"CRU",null,"CRE_eins",null,"CXU",null,"CXE_eins",null,"CUE_eins",null,"SXU",null,"SXE_eins",null,"SUE_eins",null,"ZUE_eins"]
["Überprüfung","Nein",null,"ABC","Nein",null,"Arbeitssystem","Nein",null,"Fehler",null,null,null,null,null,null,null,null,null,null,null,null,null,null,null,null,null,null,null,null,null,null,null,null,null,null,null,null,null,null,null,null,null,null,null,null,null,null,null,null,null,null,null,null,null,null,null,null,null,null,"CRY",null,null,"CRV",null,null,"CRE_zwei",null,null,"CXV",null,null,"CXE_zwei",null,null,"CUE_zwei",null,null,"SXV",null,null,"SXE_zwei",null,null,"SUE_zwei",null,null,"ZUE_zwei",null,null,null,null,null,null,null,null,null,null,null,null,null,null,null,null,null,null,null,null,null,null,null,null,null,null,null,null,null,null,null,"CRY",null,"CRV",null,"CRE_zwei",null,"CXV",null,"CXE_zwei",null,"CUE_zwei",null,"SXV",null,"SXE_zwei",null,"SUE_zwei",null,"ZUE_zwei",null,null,null,null,null,null,null,null,null,null,null,null,null,null,null,null,null,null,null,null,null,null,null,null,null,null,null,null,null,null,null,"CRY",null,"CRV",null,"CRE_zwei",null,"CXV",null,"CXE_zwei",null,"CUE_zwei",null,"SXV",null,"SXE_zwei",null,"SUE_zwei",null,"ZUE_zwei"]
[null,null,null,"RUS","Nein",null,"Lage (Produktionsstufe)",null,null,"Anzahl","Nein",null,null,null,null,null,null,null,null,null,null,null,null,null,null,null,null,null,null,null,null,null,null,null,null,null,null,null,null,null,null,null,null,null,null,null,null,null,null,null,null,null,null,null,null,null,null,null,null,null,"CRZ",null,null,"CRW",null,null,"CRE_drei",null,null,"CXW",null,null,"CXE_drei",null,null,"CUE_drei",null,null,"SXW",null,null,"SXE_drei",null,null,"SUE_drei",null,null,"ZUE_drei",null,null,null,null,null,null,null,null,null,null,null,null,null,null,null,null,null,null,null,null,null,null,null,null,null,null,null,null,null,null,null,"CRZ",null,"CRW",null,"CRE_drei",null,"CXW",null,"CXE_drei",null,"CUE_drei",null,"SXW",null,"SXE_drei",null,"SUE_drei",null,"ZUE_drei",null,null,null,null,null,null,null,null,null,null,null,null,null,null,null,null,null,null,null,null,null,null,null,null,null,null,null,null,null,null,null,"CRZ",null,"CRW",null,"CRE_drei",null,"CXW",null,"CXE_drei",null,"CUE_drei",null,"SXW",null,"SXE_drei",null,"SUE_drei",null,"ZUE_drei"]
["E_eins",null,null,"XYZ","Nein",null,"Neue Daten","Nein",null,"Namen Kundenaufträge","Nein",null,null,null,null,null,null,null,null,null,null,null,null,null,null,null,null,null,null,null,null,null,null,null,null,null,null,null,null,null,null,null,null,null,null,null,null,null,null,null,null,null,null,null,null,null,null,null,null,null,"CUX",null,null,"CUU",null,null,"CUE_eins",null,null,"CYU",null,null,"CYE_eins",null,null,"CVE_eins",null,null,"SYU",null,null,"SYE_eins",null,null,"SVE_eins",null,null,"ZVE_eins",null,null,null,null,null,null,null,null,null,null,null,null,null,null,null,null,null,null,null,null,null,null,null,null,null,null,null,null,null,null,null,"CUX",null,"CUU",null,"CUE_eins",null,"CYU",null,"CYE_eins",null,"CVE_eins",null,"SYU",null,"SYE_eins",null,"SVE_eins",null,"ZVE_eins",null,null,null,null,null,null,null,null,null,null,null,null,null,null,null,null,null,null,null,null,null,null,null,null,null,null,null,null,null,null,null,"CUX",null,"CUU",null,"CUE_eins",null,"CYU",null,"CYE_eins",null,"CVE_eins",null,"SYU",null,"SYE_eins",null,"SVE_eins",null,"ZVE_eins"]
["E_zwei",null,null,"UVW ","Nein",null,"Überprüfung","Nein",null,"Namen Produktdaten","Nein",null,null,null,null,null,null,null,null,null,null,null,null,null,null,null,null,null,null,null,null,null,null,null,null,null,null,null,null,null,null,null,null,null,null,null,null,null,null,null,null,null,null,null,null,null,null,null,null,null,"CUY",null,null,"CUV",null,null,"CUE_zwei",null,null,"CYV",null,null,"CYE_zwei",null,null,"CVE_zwei",null,null,"SYV",null,null,"SYE_zwei",null,null,"SVE_zwei",null,null,"ZVE_zwei",null,null,null,null,null,null,null,null,null,null,null,null,null,null,null,null,null,null,null,null,null,null,null,null,null,null,null,null,null,null,null,"CUY",null,"CUV",null,"CUE_zwei",null,"CYV",null,"CYE_zwei",null,"CVE_zwei",null,"SYV",null,"SYE_zwei",null,"SVE_zwei",null,"ZVE_zwei",null,null,null,null,null,null,null,null,null,null,null,null,null,null,null,null,null,null,null,null,null,null,null,null,null,null,null,null,null,null,null,"CUY",null,"CUV",null,"CUE_zwei",null,"CYV",null,"CYE_zwei",null,"CVE_zwei",null,"SYV",null,"SYE_zwei",null,"SVE_zwei",null,"ZVE_zwei"]
["E_drei",null,null,"Eigene","Nein",null,"Anzahl","Nein",null,"Zahlen Kundenaufträge","Nein",null,null,null,null,null,null,null,null,null,null,null,null,null,null,null,null,null,null,null,null,null,null,null,null,null,null,null,null,null,null,null,null,null,null,null,null,null,null,null,null,null,null,null,null,null,null,null,null,null,"CUZ",null,null,"CUW",null,null,"CUE_drei",null,null,"CYW",null,null,"CYE_drei",null,null,"CVE_drei",null,null,"SYW",null,null,"SYE_drei",null,null,"SVE_drei",null,null,"ZVE_drei",null,null,null,null,null,null,null,null,null,null,null,null,null,null,null,null,null,null,null,null,null,null,null,null,null,null,null,null,null,null,null,"CUZ",null,"CUW",null,"CUE_drei",null,"CYW",null,"CYE_drei",null,"CVE_drei",null,"SYW",null,"SYE_drei",null,"SVE_drei",null,"ZVE_drei",null,null,null,null,null,null,null,null,null,null,null,null,null,null,null,null,null,null,null,null,null,null,null,null,null,null,null,null,null,null,null,"CUZ",null,"CUW",null,"CUE_drei",null,"CYW",null,"CYE_drei",null,"CVE_drei",null,"SYW",null,"SYE_drei",null,"SVE_drei",null,"ZVE_drei"]
[null,null,null,null,null,null,"Namen","Nein",null,"Zahlen Produktdaten","Nein",null,null,null,null,null,null,null,null,null,null,null,null,null,null,null,null,null,null,null,null,null,null,null,null,null,null,null,null,null,null,null,null,null,null,null,null,null,null,null,null,null,null,null,null,null,null,null,null,null,"CSX",null,null,"CSU",null,null,"CSE_eins",null,null,"CZU",null,null,"CZE_eins",null,null,"CWE_eins",null,null,"SZU",null,null,"SZE_eins",null,null,"SWE_eins",null,null,"ZWE_eins",null,null,null,null,null,null,null,null,null,null,null,null,null,null,null,null,null,null,null,null,null,null,null,null,null,null,null,null,null,null,null,"CSX",null,"CSU",null,"CSE_eins",null,"CZU",null,"CZE_eins",null,"CWE_eins",null,"SZU",null,"SZE_eins",null,"SWE_eins",null,"ZWE_eins",null,null,null,null,null,null,null,null,null,null,null,null,null,null,null,null,null,null,null,null,null,null,null,null,null,null,null,null,null,null,null,"CSX",null,"CSU",null,"CSE_eins",null,"CZU",null,"CZE_eins",null,"CWE_eins",null,"SZU",null,"SZE_eins",null,"SWE_eins",null,"ZWE_eins"]
["Analyse","Möglich",null,"Angezeigt","Produkt",null,"Zahlen","Nein",null,"Zahlen Produktionsdaten1","Nein",null,null,null,null,null,null,null,null,null,null,null,null,null,null,null,null,null,null,null,null,null,null,null,null,null,null,null,null,null,null,null,null,null,null,null,null,null,null,null,null,null,null,null,null,null,null,null,null,null,"CSY",null,null,"CSV",null,null,"CSE_zwei",null,null,"CZV",null,null,"CZE_zwei",null,null,"CWE_zwei",null,null,"SZV",null,null,"SZE_zwei",null,null,"SWE_zwei",null,null,"ZWE_zwei",null,null,null,null,null,null,null,null,null,null,null,null,null,null,null,null,null,null,null,null,null,null,null,null,null,null,null,null,null,null,null,"CSY",null,"CSV",null,"CSE_zwei",null,"CZV",null,"CZE_zwei",null,"CWE_zwei",null,"SZV",null,"SZE_zwei",null,"SWE_zwei",null,"ZWE_zwei",null,null,null,null,null,null,null,null,null,null,null,null,null,null,null,null,null,null,null,null,null,null,null,null,null,null,null,null,null,null,null,"CSY",null,"CSV",null,"CSE_zwei",null,"CZV",null,"CZE_zwei",null,"CWE_zwei",null,"SZV",null,"SZE_zwei",null,"SWE_zwei",null,"ZWE_zwei"]
["ABC","Nein",null,"Ergebnis Losgrößenberechnung",null,null,"Einheiten","Nein",null,"Einheiten Kundenaufträge","Nein",null,null,null,null,null,null,null,null,null,null,null,null,null,null,null,null,null,null,null,null,null,null,null,null,null,null,null,null,null,null,null,null,null,null,null,null,null,null,null,null,null,null,null,null,null,null,null,null,null,"CSZ",null,null,"CSW",null,null,"CSE_drei",null,null,"CZW",null,null,"CZE_drei",null,null,"CWE_drei",null,null,"SZW",null,null,"SZE_drei",null,null,"SWE_drei",null,null,"ZWE_drei",null,null,null,null,null,null,null,null,null,null,null,null,null,null,null,null,null,null,null,null,null,null,null,null,null,null,null,null,null,null,null,"CSZ",null,"CSW",null,"CSE_drei",null,"CZW",null,"CZE_drei",null,"CWE_drei",null,"SZW",null,"SZE_drei",null,"SWE_drei",null,"ZWE_drei",null,null,null,null,null,null,null,null,null,null,null,null,null,null,null,null,null,null,null,null,null,null,null,null,null,null,null,null,null,null,null,"CSZ",null,"CSW",null,"CSE_drei",null,"CZW",null,"CZE_drei",null,"CWE_drei",null,"SZW",null,"SZE_drei",null,"SWE_drei",null,"ZWE_drei"]
["RUS","Nein",null,"Einzelproduktauswertung",null,null,"Entkopplung durch ATO?","Nein",null,"Einheiten Produktdaten","Nein",null,null,null,null,null,null,null,null,null,null,null,null,null,null,null,null,null,null,null,null,null,null,null,null,null,null,null,null,null,null,null,null,null,null,null,null,null,null,null,null,null,null,null,null,null,null,null,null,"SG","ARX",null,"SG","ARU",null,"SG","ARE_eins",null,"SG","AXU",null,"SG","AXE_eins",null,"SG","AUE_eins",null,"SG","RXU",null,"SG","RXE_eins",null,"SG","RUE_eins",null,"SG","XUE_eins"]
["XYZ","Nein",null,null,null,null,null,null,null,"Einheiten Produktionsdaten","Nein",null,null,null,null,null,null,null,null,null,null,null,null,null,null,null,null,null,null,null,null,null,null,null,null,null,null,null,null,null,null,null,null,null,null,null,null,null,null,null,null,null,null,null,null,null,null,null,null,null,"ARY",null,null,"ARV",null,null,"ARE_zwei",null,null,"AXV",null,null,"AXE_zwei",null,null,"AUE_zwei",null,null,"RXV",null,null,"RXE_zwei",null,null,"RUE_zwei",null,null,"XUE_zwei"]
["UVW","Nein",null,null,null,null,null,null,null,"Zahlen Produktionsdaten 2","Nein",null,null,null,null,null,null,null,null,null,null,null,null,null,null,null,null,null,null,null,null,null,null,null,null,null,null,null,null,null,null,null,null,null,null,null,null,null,null,null,null,null,null,null,null,null,null,null,null,null,"ARZ",null,null,"ARW",null,null,"ARE_drei",null,null,"AXW",null,null,"AXE_drei",null,null,"AUE_drei",null,null,"RXW",null,null,"RXE_drei",null,null,"RUE_drei",null,null,"XUE_drei"]
["LG","Nein",null,null,null,null,null,null,null,null,null,null,null,null,null,null,null,null,null,null,null,null,null,null,null,null,null,null,null,null,null,null,null,null,null,null,null,null,null,null,null,null,null,null,null,null,null,null,null,null,null,null,null,null,null,null,null,null,null,null,"AUX",null,null,"AUU",null,null,"AUE_eins",null,null,"AYU",null,null,"AYE_eins",null,null,"AVE_eins",null,null,"RYU",null,null,"RYE_eins",null,null,"RVE_eins",null,null,"XVE_eins"]
[null,null,null,null,null,null,null,null,null,null,null,null,null,null,null,null,null,null,null,null,null,null,null,null,null,null,null,null,null,null,null,null,null,null,null,null,null,null,null,null,null,null,null,null,null,null,null,null,null,null,null,null,null,null,null,null,null,null,null,null,"AUY",null,null,"AUV",null,null,"AUE_zwei",null,null,"AYV",null,null,"AYE_zwei",null,null,"AVE_zwei",null,null,"RYV",null,null,"RYE_zwei",null,null,"RVE_zwei",null,null,"XVE_zwei"]
[null,null,null,null,null,null,null,null,null,null,null,null,null,null,null,null,null,null,null,null,null,null,null,null,null,null,null,null,null,null,null,null,null,null,null,null,null,null,null,null,null,null,null,null,null,null,null,null,null,null,null,null,null,null,null,null,null,null,null,null,"AUZ",null,null,"AUW",null,null,"AUE_drei",null,null,"AYW",null,null,"AYE_drei",null,null,"AVE_drei",null,null,"RYW",null,null,"RYE_drei",null,null,"RVE_drei",null,null,"XVE_drei"]
[null,null,null,null,null,null,null,null,null,null,null,null,null,null,null,null,null,null,null,null,null,null,null,null,null,null,null,null,null,null,null,null,null,null,null,null,null,null,null,null,null,null,null,null,null,null,null,null,null,null,null,null,null,null,null,null,null,null,null,null,"ASX",null,null,"ASU",null,null,"ASE_eins",null,null,"AZU",null,null,"AZE_eins",null,null,"AWE_eins",null,null,"RZU",null,null,"RZE_eins",null,null,"RWE_eins",null,null,"XWE_eins"]
[null,null,null,null,null,null,null,null,null,null,null,null,null,null,null,null,null,null,null,null,null,null,null,null,null,null,null,null,null,null,null,null,null,null,null,null,null,null,null,null,null,null,null,null,null,null,null,null,null,null,null,null,null,null,null,null,null,null,null,null,"ASY",null,null,"ASV",null,null,"ASE_zwei",null,null,"AZV",null,null,"AZE_zwei",null,null,"AWE_zwei",null,null,"RZV",null,null,"RZE_zwei",null,null,"RWE_zwei",null,null,"XWE_zwei"]
[null,null,null,null,null,null,null,null,null,null,null,null,null,null,null,null,null,null,null,null,null,null,null,null,null,null,null,null,null,null,null,null,null,null,null,null,null,null,null,null,null,null,null,null,null,null,null,null,null,null,null,null,null,null,null,null,null,null,null,null,"ASZ",null,null,"ASW",null,null,"ASE_drei",null,null,"AZW",null,null,"AZE_drei",null,null,"AWE_drei",null,null,"RZW",null,null,"RZE_drei",null,null,"RWE_drei",null,null,"XWE_drei"]
[null,null,null,null,null,null,null,null,null,null,null,null,null,null,null,null,null,null,null,null,null,null,null,null,null,null,null,null,null,null,null,null,null,null,null,null,null,null,null,null,null,null,null,null,null,null,null,null,null,null,null,null,null,null,null,null,null,null,null,null,"BRX",null,null,"BRU",null,null,"BRE_eins",null,null,"BXU",null,null,"BXE_eins",null,null,"BUE_eins",null,null,"UXU",null,null,"UXE_eins",null,null,"UUE_eins",null,null,"YUE_eins"]
[null,null,null,null,null,null,null,null,null,null,null,null,null,null,null,null,null,null,null,null,null,null,null,null,null,null,null,null,null,null,null,null,null,null,null,null,null,null,null,null,null,null,null,null,null,null,null,null,null,null,null,null,null,null,null,null,null,null,null,null,"BRY",null,null,"BRV",null,null,"BRE_zwei",null,null,"BXV",null,null,"BXE_zwei",null,null,"BUE_zwei",null,null,"UXV",null,null,"UXE_zwei",null,null,"UUE_zwei",null,null,"YUE_zwei"]
[null,null,null,null,null,null,null,null,null,null,null,null,null,null,null,null,null,null,null,null,null,null,null,null,null,null,null,null,null,null,null,null,null,null,null,null,null,null,null,null,null,null,null,null,null,null,null,null,null,null,null,null,null,null,null,null,null,null,null,null,"BRZ",null,null,"BRW",null,null,"BRE_drei",null,null,"BXW",null,null,"BXE_drei",null,null,"BUE_drei",null,null,"UXW",null,null,"UXE_drei",null,null,"UUE_drei",null,null,"YUE_drei"]
[null,null,null,null,null,null,null,null,null,null,null,null,null,null,null,null,null,null,null,null,null,null,null,null,null,null,null,null,null,null,null,null,null,null,null,null,null,null,null,null,null,null,null,null,null,null,null,null,null,null,null,null,null,null,null,null,null,null,null,null,"BUX",null,null,"BUU",null,null,"BUE_eins",null,null,"BYU",null,null,"BYE_eins",null,null,"BVE_eins",null,null,"UYU",null,null,"UYE_eins",null,null,"UVE_eins",null,null,"YVE_eins"]
[null,null,null,null,null,null,null,null,null,null,null,null,null,null,null,null,null,null,null,null,null,null,null,null,null,null,null,null,null,null,null,null,null,null,null,null,null,null,null,null,null,null,null,null,null,null,null,null,null,null,null,null,null,null,null,null,null,null,null,null,"BUY",null,null,"BUV",null,null,"BUE_zwei",null,null,"BYV",null,null,"BYE_zwei",null,null,"BVE_zwei",null,null,"UYV",null,null,"UYE_zwei",null,null,"UVE_zwei",null,null,"YVE_zwei"]
[null,null,null,null,null,null,null,null,null,null,null,null,null,null,null,null,null,null,null,null,null,null,null,null,null,null,null,null,null,null,null,null,null,null,null,null,null,null,null,null,null,null,null,null,null,null,null,null,null,null,null,null,null,null,null,null,null,null,null,null,"BUZ",null,null,"BUW",null,null,"BUE_drei",null,null,"BYW",null,null,"BYE_drei",null,null,"BVE_drei",null,null,"UYW",null,null,"UYE_drei",null,null,"UVE_drei",null,null,"YVE_drei"]
[null,null,null,null,null,null,null,null,null,null,null,null,null,null,null,null,null,null,null,null,null,null,null,null,null,null,null,null,null,null,null,null,null,null,null,null,null,null,null,null,null,null,null,null,null,null,null,null,null,null,null,null,null,null,null,null,null,null,null,null,"BSX",null,null,"BSU",null,null,"BSE_eins",null,null,"BZU",null,null,"BZE_eins",null,null,"BWE_eins",null,null,"UZU",null,null,"UZE_eins",null,null,"UWE_eins",null,null,"YWE_eins"]
[null,null,null,null,null,null,null,null,null,null,null,null,null,null,null,null,null,null,null,null,null,null,null,null,null,null,null,null,null,null,null,null,null,null,null,null,null,null,null,null,null,null,null,null,null,null,null,null,null,null,null,null,null,null,null,null,null,null,null,null,"BSY",null,null,"BSV",null,null,"BSE_zwei",null,null,"BZV",null,null,"BZE_zwei",null,null,"BWE_zwei",null,null,"UZV",null,null,"UZE_zwei",null,null,"UWE_zwei",null,null,"YWE_zwei"]
[null,null,null,null,null,null,null,null,null,null,null,null,null,null,null,null,null,null,null,null,null,null,null,null,null,null,null,null,null,null,null,null,null,null,null,null,null,null,null,null,null,null,null,null,null,null,null,null,null,null,null,null,null,null,null,null,null,null,null,null,"BSZ",null,null,"BSW",null,null,"BSE_drei",null,null,"BZW",null,null,"BZE_drei",null,null,"BWE_drei",null,null,"UZW",null,null,"UZE_drei",null,null,"UWE_drei",null,null,"YWE_drei"]
[null,null,null,null,null,null,null,null,null,null,null,null,null,null,null,null,null,null,null,null,null,null,null,null,null,null,null,null,null,null,null,null,null,null,null,null,null,null,null,null,null,null,null,null,null,null,null,null,null,null,null,null,null,null,null,null,null,null,null,null,"CRX",null,null,"CRU",null,null,"CRE_eins",null,null,"CXU",null,null,"CXE_eins",null,null,"CUE_eins",null,null,"SXU",null,null,"SXE_eins",null,null,"SUE_eins",null,null,"ZUE_eins"]
[null,null,null,null,null,null,null,null,null,null,null,null,null,null,null,null,null,null,null,null,null,null,null,null,null,null,null,null,null,null,null,null,null,null,null,null,null,null,null,null,null,null,null,null,null,null,null,null,null,null,null,null,null,null,null,null,null,null,null,null,"CRY",null,null,"CRV",null,null,"CRE_zwei",null,null,"CXV",null,null,"CXE_zwei",null,null,"CUE_zwei",null,null,"SXV",null,null,"SXE_zwei",null,null,"SUE_zwei",null,null,"ZUE_zwei"]
[null,null,null,null,null,null,null,null,null,null,null,null,null,null,null,null,null,null,null,null,null,null,null,null,null,null,null,null,null,null,null,null,null,null,null,null,null,null,null,null,null,null,null,null,null,null,null,null,null,null,null,null,null,null,null,null,null,null,null,null,"CRZ",null,null,"CRW",null,null,"CRE_drei",null,null,"CXW",null,null,"CXE_drei",null,null,"CUE_drei",null,null,"SXW",null,null,"SXE_drei",null,null,"SUE_drei",null,null,"ZUE_drei"]
[null,null,null,null,null,null,null,null,null,null,null,null,null,null,null,null,null,null,null,null,null,null,null,null,null,null,null,null,null,null,null,null,null,null,null,null,null,null,null,null,null,null,null,null,null,null,null,null,null,null,null,null,null,null,null,null,null,null,null,null,"CUX",null,null,"CUU",null,null,"CUE_eins",null,null,"CYU",null,null,"CYE_eins",null,null,"CVE_eins",null,null,"SYU",null,null,"SYE_eins",null,null,"SVE_eins",null,null,"ZVE_eins"]
[null,null,null,null,null,null,null,null,null,null,null,null,null,null,null,null,null,null,null,null,null,null,null,null,null,null,null,null,null,null,null,null,null,null,null,null,null,null,null,null,null,null,null,null,null,null,null,null,null,null,null,null,null,null,null,null,null,null,null,null,"CUY",null,null,"CUV",null,null,"CUE_zwei",null,null,"CYV",null,null,"CYE_zwei",null,null,"CVE_zwei",null,null,"SYV",null,null,"SYE_zwei",null,null,"SVE_zwei",null,null,"ZVE_zwei"]
[null,null,null,null,null,null,null,null,null,null,null,null,null,null,null,null,null,null,null,null,null,null,null,null,null,null,null,null,null,null,null,null,null,null,null,null,null,null,null,null,null,null,null,null,null,null,null,null,null,null,null,null,null,null,null,null,null,null,null,null,"CUZ",null,null,"CUW",null,null,"CUE_drei",null,null,"CYW",null,null,"CYE_drei",null,null,"CVE_drei",null,null,"SYW",null,null,"SYE_drei",null,null,"SVE_drei",null,null,"ZVE_drei"]
[null,null,null,null,null,null,null,null,null,null,null,null,null,null,null,null,null,null,null,null,null,null,null,null,null,null,null,null,null,null,null,null,null,null,null,null,null,null,null,null,null,null,null,null,null,null,null,null,null,null,null,null,null,null,null,null,null,null,null,null,"CSX",null,null,"CSU",null,null,"CSE_eins",null,null,"CZU",null,null,"CZE_eins",null,null,"CWE_eins",null,null,"SZU",null,null,"SZE_eins",null,null,"SWE_eins",null,null,"ZWE_eins"]
[null,null,null,null,null,null,null,null,null,null,null,null,null,null,null,null,null,null,null,null,null,null,null,null,null,null,null,null,null,null,null,null,null,null,null,null,null,null,null,null,null,null,null,null,null,null,null,null,null,null,null,null,null,null,null,null,null,null,null,null,"CSY",null,null,"CSV",null,null,"CSE_zwei",null,null,"CZV",null,null,"CZE_zwei",null,null,"CWE_zwei",null,null,"SZV",null,null,"SZE_zwei",null,null,"SWE_zwei",null,null,"ZWE_zwei"]
[null,null,null,null,null,null,null,null,null,null,null,null,null,null,null,null,null,null,null,null,null,null,null,null,null,null,null,null,null,null,null,null,null,null,null,null,null,null,null,null,null,null,null,null,null,null,null,null,null,null,null,null,null,null,null,null,null,null,null,null,"CSZ",null,null,"CSW",null,null,"CSE_drei",null,null,"CZW",null,null,"CZE_drei",null,null,"CWE_drei",null,null,"SZW",null,null,"SZE_drei",null,null,"SWE_drei",null,null,"ZWE_drei"]

{"sheet":"Ergebnisdarstellung","index":56,"n_rows":34,"n_cols":15,"rows_kept":34,"cut":false,"hidden":false,"merged":[[24,14,24,17],[6,5,8,11],[11,5,12,7],[9,5,10,7],[9,9,10,11],[21,15,21,16],[1,9,2,11],[11,9,12,11],[3,9,3,10],[4,9,4,10],[1,1,2,3],[3,1,3,2],[4,1,4,2],[1,5,2,7],[3,5,3,6],[4,5,4,6],[9,1,9,2],[11,1,12,2],[11,3,12,3],[6,1,7,3],[8,1,8,2]]}
[]
[null,"MTO",null,null,null,"ATO",null,null,null,"MTS"]
[]
[null,"Anzahl Produkte",null,null,null,"Anzahl Produkte",null,null,null,"Anzahl Produkte"]
[null,"Veränderung",null,null,null,"Veränderung",null,null,null,"Veränderung"]
[]
[null,"Nicht zuordenbar",null,null,null,"Gesamtkosten"]
[]
[null,"Anzahl Produkte"]
[null,"Veränderung",null,null,null,"Neue Zuteilung"]
[]
[null,"Anzahl Wechsel",null,null,null,"Veränderung"]
[]
[]
[]
[]
[]
[]
[]
[]
[]
[]
[]
[]
[null,null,null,null,null,null,null,null,null,null,null,null,null,null,"Rahmenbedingungen:"]
[]
[null,null,null,null,null,null,null,null,null,null,null,null,null,null,"Produktionsstufen"]
[null,null,null,null,null,null,null,null,null,null,null,null,null,null,"KEP Position"]
[null,null,null,null,null,null,null,null,null,null,null,null,null,null,"ABC-Analyse"]
[null,null,null,null,null,null,null,null,null,null,null,null,null,null,"RUS-Analyse"]
[null,null,null,null,null,null,null,null,null,null,null,null,null,null,"XYZ-Analyse"]
[null,null,null,null,null,null,null,null,null,null,null,null,null,null,"UVW-Analyse"]
[null,null,null,null,null,null,null,null,null,null,null,null,null,null,"Eigene Klassifizierung"]
[null,null,null,null,null,null,null,null,null,null,null,null,null,null,"Losgrößenberechnung"]

{"sheet":"Rohmateriallager","index":57,"n_rows":6,"n_cols":7,"rows_kept":6,"cut":false,"hidden":false,"merged":[[1,1,2,2],[4,1,5,1],[4,2,4,4],[4,5,4,6],[1,3,1,5],[2,3,2,5]]}
[]
[null,"Rohmateriallager",null,"Lagerhaltungskostensatz",null,null,{"$f":"Zwischenspeicher!E2","v":0}]
[null,null,null,"Kapitalbindungskostensatz",null,null,{"$f":"Zwischenspeicher!E7","v":0}]
[]
[null,"Produkt","Bestände [Stück]",null,null,"Kosten [€]"]
[null,null,"Mittlerer Lagerbestand","Losbestand","Sicherheitsbestand","Lager","Kapitalbindung"]

{"sheet":"Halbfabrikatslager","index":58,"n_rows":6,"n_cols":8,"rows_kept":6,"cut":false,"hidden":false,"merged":[[1,1,2,2],[4,1,5,1],[4,2,4,4],[4,5,4,7],[2,3,2,6],[1,3,1,6]]}
[]
[null,"Halbfabrikatslager",null,"Lagerhaltungskostensatz",null,null,null,{"$f":"Zwischenspeicher!E2","v":0}]
[null,null,null,"Kapitalbindungskostensatz",null,null,null,{"$f":"Zwischenspeicher!E7","v":0}]
[]
[null,"Produkt","Bestände [Stück]",null,null,"Kosten [€]"]
[null,null,"Mittlerer Lagerbestand","Losbestand","Sicherheitsbestand","Lager","Kapitalbindung","Wagnis"]

{"sheet":"Fertigwarenlager","index":59,"n_rows":6,"n_cols":14,"rows_kept":6,"cut":false,"hidden":false,"merged":[[1,13,1,14],[2,13,2,14],[1,15,1,18],[2,15,2,18],[1,9,2,12],[1,1,2,2],[4,1,5,1],[4,2,4,4],[4,5,4,7],[1,3,1,6],[2,3,2,6]]}
[]
[null,"Fertigwarenlager",null,"Lagerhaltungskostensatz",null,null,null,{"$f":"Zwischenspeicher!E2","v":0},null,"Benötigter Lagerplatz [m2]",null,null,null,"Maximal"]
[null,null,null,"Kapitalbindungskostensatz",null,null,null,{"$f":"Zwischenspeicher!E7","v":0},null,null,null,null,null,"Mittel"]
[]
[null,"Produkt","Bestände [Stück]",null,null,"Kosten [€]"]
[null,null,"Mittlerer Lagerbestand","Losbestand","Sicherheitsbestand","Lager","Kapitalbindung","Wagnis"]

{"sheet":"Versandlager","index":60,"n_rows":6,"n_cols":5,"rows_kept":6,"cut":false,"hidden":false,"merged":[[4,1,5,1],[4,2,5,2],[4,3,4,4],[1,1,2,1],[1,2,1,3],[2,2,2,3]]}
[]
[null,"Versandlager","Lagerhaltungskostensatz",null,{"$f":"Zwischenspeicher!E2","v":0}]
[null,null,"Kapitalbindungskostensatz",null,{"$f":"Zwischenspeicher!E7","v":0}]
[]
[null,"Produkt","Mittlerer \nLagerbestand [Stück]","Kosten [€]"]
[null,null,null,"Lager","Kapitalbindung"]

{"sheet":"Bestandsauswertung","index":61,"n_rows":19,"n_cols":11,"rows_kept":19,"cut":false,"hidden":false,"merged":[[17,9,17,10],[17,0,18,0],[17,7,17,8],[17,5,17,6],[17,1,18,1],[17,2,18,2],[17,3,17,4]]}
[]
[]
[]
[]
[]
[]
[]
[]
[]
[]
[]
[]
[]
[]
[]
[]
[]
[null,"Produkt","Bestandskosten gesamt [€]","Rohmateriallager",null,"Halbfabrikatslager",null,"Fertigwarenlager",null,"Versandlager"]
[null,null,null,"Mittlerer \nLagerbestand [Stück]","Bestandskosten [€]","Mittlerer \nLagerbestand [Stück]","Bestandskosten [€]","Mittlerer \nLagerbestand [Stück]","Bestandskosten [€]","Mittlerer \nLagerbestand [Stück]","Bestandskosten [€]"]

{"sheet":"Produktauswertung","index":62,"n_rows":29,"n_cols":22,"rows_kept":29,"cut":false,"hidden":false,"merged":[[9,24,10,25],[1,4,2,4],[1,8,2,8],[1,12,2,12],[6,16,7,23],[1,21,2,25],[3,21,4,25],[6,24,7,25],[1,5,1,6],[1,9,1,10],[1,13,1,14],[6,1,7,2],[4,1,5,2],[9,16,10,23],[24,2,25,2],[26,2,27,2],[28,2,29,2],[22,1,29,1],[14,2,15,2],[16,2,17,2],[20,2,21,2],[8,1,21,1],[22,2,23,2],[8,2,9,2],[10,2,11,2],[12,2,13,2],[18,2,19,2]]}
[]
[null,null,null,null,"MTS","Nachfrage",null,null,"ATO","Nachfrage",null,null,"MTO","Nachfrage",null,null,null,null,null,null,null,"Angezeigtes Produkt"]
[null,null,null,null,null,"Geringer","Höher",null,null,"Geringer","Höher",null,null,"Geringer","Höher"]
[null,null,null,null,null,null,null,null,null,null,null,null,null,null,null,null,null,null,null,null,null,{"$f":"Zwischenspeicher!E30","v":0}]
[null,"Möglich",null,null,"Ja","Ja","Ja",null,"Nein","Nein","Nein",null,"Nein","Nein","Nein"]
[]
[null,"Reduzierte Zielgröße",null,null,null,null,null,null,null,null,null,null,null,null,null,null,"Ausgewählte Auftragsabwicklungsstrategie"]
[]
[null,"Kosten [€]","Lager"]
[null,null,null,null,null,null,null,null,null,null,null,null,null,null,null,null,"Ursprüngliche Auftragsabwicklungsstrategie"]
[null,null,"Kapitalbindung"]
[]
[null,null,"Wagnis"]
[]
[null,null,"Rüsten"]
[]
[null,null,"Lieferverzug"]
[]
[null,null,"Steuerung"]
[]
[null,null,"Gesamt"]
[]
[null,"Bestände [Stück]","Rohmateriallager"]
[]
[null,null,"Halbfabrikatslager"]
[]
[null,null,"Fertgiwarenlager"]
[]
[null,null,"Versandlager"]

{"sheet":"Gesamtauswertung","index":63,"n_rows":33,"n_cols":44,"rows_kept":33,"cut":false,"hidden":false,"merged":[[2,6,3,6],[30,49,31,49],[32,49,33,49],[34,50,35,50],[32,50,33,50],[30,50,31,50],[24,50,25,50],[24,49,25,49],[28,43,29,48],[26,43,27,48],[24,43,25,48],[26,49,27,49],[28,49,29,49],[28,50,29,50],[26,50,27,50],[34,43,35,48],[32,43,33,48],[30,43,31,48],[34,49,35,49],[0,0,3,0],[2,5,3,5],[2,7,3,7],[2,14,2,15],[2,16,2,17],[0,2,0,19],[0,1,3,1],[1,2,3,2],[1,3,1,7],[1,12,1,15],[2,4,3,4],[2,3,3,3],[2,12,2,13],[1,8,1,11],[2,8,2,9],[2,10,2,11],[0,32,0,40],[1,27,1,31],[2,27,3,27],[1,22,1,26],[0,22,0,31],[2,22,3,22],[2,23,3,23],[1,38,1,40],[1,34,1,37],[2,34,2,35],[2,36,2,37],[2,40,3,40],[2,38,3,38],[2,28,2,31],[2,39,3,39],[2,26,3,26],[2,25,3,25],[1,32,1,33],[2,32,3,32],[2,33,3,33],[2,18,2,19],[1,16,1,19],[1,20,1,21],[2,20,2,21],[2,24,3,24],[20,49,21,51],[22,49,23,49],[22,50,23,50],[18,43,19,51],[16,43,17,51],[22,43,23,48],[20,43,21,48]]}
["Produkt","Ursprüngliche Auftragsabwicklungs-strategie","Ergebnisse der grundlegende Analyse",null,null,null,null,null,null,null,null,null,null,null,null,null,null,null,null,null,null,null,"Ergebnisse der Vorabanalysen",null,null,null,null,null,null,null,null,null,"Ergebnisse der weiterführende Analysen"]
[null,null,"Berechnete Auftragsabwicklungs-strategie","Kosten [€]",null,null,null,null,"Rohmateriallager",null,null,null,"Halbfabrikatslager",null,null,null,"Fertigwarenlager",null,null,null,"Versandlager",null,"Klassifizierungen",null,null,null,null,"Losgröße [Stück]",null,null,null,null,"Übergangszeit bei MTO",null,null,null,null,null,"Belastungsflexibilität"]
[null,null,null,"Gesamt","Bestand","Rüsten","Lieferverzug","Steuerung","Mittlerer Bestand [Stück]",null,"Sicherheitsbestand [Stück]",null,"Mittlerer Bestand [Stück]",null,"Sicherheitsbestand [Stück]",null,"Mittlerer Bestand [Stück]",null,"Sicherheitsbestand [Stück]",null,"Mittlerer Bestand [Stück]",null,"ABC","RUS","XYZ","UVW","Eigene Analyse","Ursprünglich","Berechnet",null,null,null,"Anteil an Durchlaufzeit [%]","Rang","Geringere Nachfrage",null,"Höhere Nachfrage",null,"Auftragsabwicklunsgsstrategie","Gesamtkosten [€]","Rang"]
[null,null,null,null,null,null,null,null,"Ursprünglich","Berechnet","Ursprünglich","Berechnet","Ursprünglich","Berechnet","Ursprünglich","Berechnet","Ursprünglich","Berechnet","Ursprünglich","Berechnet","Ursprünglich","Berechnet",null,null,null,null,null,null,"MTS","ATO vor KEP","ATO nach KEP","MTO",null,null,"Auftragsabwicklunsgsstrategie","Gesamtkosten  [€]","Auftragsabwicklunsgsstrategie","Gesamtkosten  [€]"]
[]
[]
[]
[]
[]
[]
[]
[]
[]
[]
[]
[]
[null,null,null,null,null,null,null,null,null,null,null,null,null,null,null,null,null,null,null,null,null,null,null,null,null,null,null,null,null,null,null,null,null,null,null,null,null,null,null,null,null,null,null,"Von einer Abweichung betroffenes Produkt"]
[]
[null,null,null,null,null,null,null,null,null,null,null,null,null,null,null,null,null,null,null,null,null,null,null,null,null,null,null,null,null,null,null,null,null,null,null,null,null,null,null,null,null,null,null,"Abweichung Auftragsabwicklungssstrategie"]
[]
[null,null,null,null,null,null,null,null,null,null,null,null,null,null,null,null,null,null,null,null,null,null,null,null,null,null,null,null,null,null,null,null,null,null,null,null,null,null,null,null,null,null,null,"Abweichung Bestände"]
[]
[null,null,null,null,null,null,null,null,null,null,null,null,null,null,null,null,null,null,null,null,null,null,null,null,null,null,null,null,null,null,null,null,null,null,null,null,null,null,null,null,null,null,null,"Abweichung  mittlerer Bestand Rohmateriallager "]
[]
[null,null,null,null,null,null,null,null,null,null,null,null,null,null,null,null,null,null,null,null,null,null,null,null,null,null,null,null,null,null,null,null,null,null,null,null,null,null,null,null,null,null,null,"Abweichung mittlerer Bestand Halbfabrikatslager"]
[]
[null,null,null,null,null,null,null,null,null,null,null,null,null,null,null,null,null,null,null,null,null,null,null,null,null,null,null,null,null,null,null,null,null,null,null,null,null,null,null,null,null,null,null,"Abweichung mittlerer Bestand Fertigwarenlager"]
[]
[null,null,null,null,null,null,null,null,null,null,null,null,null,null,null,null,null,null,null,null,null,null,null,null,null,null,null,null,null,null,null,null,null,null,null,null,null,null,null,null,null,null,null,"Abweichung Sicherheitsbestand Rohmateriallager"]
[]
[null,null,null,null,null,null,null,null,null,null,null,null,null,null,null,null,null,null,null,null,null,null,null,null,null,null,null,null,null,null,null,null,null,null,null,null,null,null,null,null,null,null,null,"Abweichung Sicherheitsbestand Halbfabrikatslager"]
[]
[null,null,null,null,null,null,null,null,null,null,null,null,null,null,null,null,null,null,null,null,null,null,null,null,null,null,null,null,null,null,null,null,null,null,null,null,null,null,null,null,null,null,null,"Abweichung Sicherheitsbestand Fertigwarenlager"]

{"sheet":"Ergebnis_Belastungsflexibilität","index":64,"n_rows":6,"n_cols":16,"rows_kept":6,"cut":false,"hidden":false,"merged":[[1,15,2,17],[1,18,2,18],[3,15,4,17],[3,18,4,18],[5,15,6,17],[5,18,6,18],[1,13,6,13],[0,3,1,3],[0,1,0,2],[0,0,1,0],[0,4,0,6],[0,8,1,8],[0,7,1,7],[1,10,3,12],[4,10,6,12]]}
["Produkt","Berechnet",null,"Bereits entkoppelt","Entkopplung noch möglich",null,null,"Anteil Arbeitsinhalt [%]","Soll zusätzlich entkoppelt werden"]
[null," Auftragsabwicklungsstrategie","Gesamtkosten [€]",null," Auftragsabwicklungsstrategie","Mehrkosten  [€]","Rang",null,null,null,"Bereits",null,null,null,null,"Zusätzlich entkoppeln [%]"]
[]
[null,null,null,null,null,null,null,null,null,null,null,null,null,null,null,"Mehrkosten [€]"]
[null,null,null,null,null,null,null,null,null,null,"entkoppelt [%]"]
[null,null,null,null,null,null,null,null,null,null,null,null,null,null,null,"Mehrkosten [%]"]

{"sheet":"Ergebnis_ABC_Analyse","index":65,"n_rows":5,"n_cols":16,"rows_kept":5,"cut":false,"hidden":false,"merged":[[1,13,2,15],[1,5,2,7],[1,9,2,11],[4,5,4,6],[3,5,3,6],[4,9,4,10],[3,9,3,10],[4,13,4,14],[3,13,3,14]]}
[]
[null,"Produkt","Ursprünglich","Berechnet",null,"A-Klassifizierung",null,null,null,"B-Klassifizierung",null,null,null,"C-Klassifizierung"]
[]
[null,null,null,null,null,"Anzahl Produkte",null,0,null,"Anzahl Produkte",null,0,null,"Anzahl Produkte",null,0]
[null,null,null,null,null,"Umsatzanteil bis",null,{"$f":"Zwischenspeicher!B2","v":"-"},null,"Umsatzanteil bis",null,{"$f":"Zwischenspeicher!B3","v":"-"},null,"Umsatzanteil bis",null,{"$f":"Zwischenspeicher!B4","v":1}]

{"sheet":"Ergebnis_RUS_Analyse","index":66,"n_rows":31,"n_cols":16,"rows_kept":31,"cut":false,"hidden":false,"merged":[[1,5,2,7],[1,9,2,11],[1,13,2,15],[3,5,3,6],[3,9,3,10],[3,13,3,14],[30,7,31,10],[30,11,31,13],[4,5,4,6],[4,9,4,10],[4,13,4,14]]}
[]
[null,"Produkt","Ursprünglich","Berechnet",null,"R-Klassifizierung",null,null,null,"U-Klassifizierung",null,null,null,"S-Klassifizierung"]
[]
[null,null,null,null,null,"Anzahl Produkte",null,0,null,"Anzahl Produkte",null,0,null,"Anzahl Produkte",null,0]
[null,null,null,null,null,"Variationskoeffizient bis",null,{"$f":"Zwischenspeicher!B7","v":"-"},null,"Variationskoeffizient bis",null,{"$f":"Zwischenspeicher!B8","v":"-"},null,"Variationskoeffizient ab",null,{"$f":"Zwischenspeicher!B8","v":"-"}]
[]
[]
[]
[]
[]
[]
[]
[]
[]
[]
[]
[]
[]
[]
[]
[]
[]
[]
[]
[]
[]
[]
[]
[]
[]
[null,null,null,null,null,null,null,"Gewählte Periodenlänge",null,null,null,{"$f":"Zwischenspeicher!K10","v":"Nichts"}]

{"sheet":"Ergebnis_XYZ_Analyse","index":67,"n_rows":31,"n_cols":16,"rows_kept":31,"cut":false,"hidden":false,"merged":[[1,5,2,7],[1,9,2,11],[1,13,2,15],[3,5,3,6],[3,9,3,10],[3,13,3,14],[30,11,31,13],[30,7,31,10],[4,5,4,6],[4,9,4,10],[4,13,4,14]]}
[]
[null,"Produkt","Ursprünglich","Berechnet",null,"X-Klassifizierung",null,null,null,"Y-Klassifizierung",null,null,null,"Z-Klassifizierung"]
[]
[null,null,null,null,null,"Anzahl Produkte",null,0,null,"Anzahl Produkte",null,0,null,"Anzahl Produkte",null,0]
[null,null,null,null,null,"Nullperiodenanteil bis",null,{"$f":"Zwischenspeicher!B10","v":"-"},null,"Nullperiodenanteil bis",null,{"$f":"Zwischenspeicher!B11","v":"-"},null,"Nullperiodenanteil bis",null,{"$f":"Zwischenspeicher!B12","v":1}]
[]
[]
[]
[]
[]
[]
[]
[]
[]
[]
[]
[]
[]
[]
[]
[]
[]
[]
[]
[]
[]
[]
[]
[]
[]
[null,null,null,null,null,null,null,"Gewählte Periodenlänge",null,null,null,{"$f":"Zwischenspeicher!K16","v":"Nichts"}]

{"sheet":"Ergebnis_UVW_Analyse","index":68,"n_rows":5,"n_cols":16,"rows_kept":5,"cut":false,"hidden":false,"merged":[[4,5,4,6],[4,9,4,10],[4,13,4,14],[1,5,2,7],[1,9,2,11],[1,13,2,15],[3,5,3,6],[3,9,3,10],[3,13,3,14]]}
[]
[null,"Produkt","Ursprünglich","Berechnet",null,"U-Klassifizierung",null,null,null,"V-Klassifizierung",null,null,null,"W-Klassifizierung"]
[]
[null,null,null,null,null,"Anzahl Produkte",null,0,null,"Anzahl Produkte",null,0,null,"Anzahl Produkte",null,0]
[null,null,null,null,null,"Terminabweichung [Tage] bis",null,{"$f":"Zwischenspeicher!B15","v":"-"},null,"Terminabweichung [Tage] bis",null,{"$f":"Zwischenspeicher!B16","v":"-"},null,"Terminabweichung [Tage] ab",null,{"$f":"Zwischenspeicher!B16","v":"-"}]

{"sheet":"Ergebnis_Losgrößenberechnung","index":69,"n_rows":4,"n_cols":16,"rows_kept":4,"cut":false,"hidden":false,"merged":[[1,15,2,16],[3,15,4,16],[3,7,4,9],[1,7,2,9],[1,11,2,13],[3,11,4,13]]}
[]
[null,"Produkt","MTS","ATO vor KEP","ATO nach KEP","MTO",null,"Logistikfaktor",null,null,null,"Lagerhaltungskostensatz",null,null,null,"Angezeigtes Produkt"]
[]
[null,null,null,null,null,null,0,{"$f":"Zwischenspeicher!E3","v":"-"},null,null,0,{"$f":"IF(Zwischenspeicher!E2+ Zwischenspeicher!E7<> 0,Zwischenspeicher!E2+ Zwischenspeicher!E7, \"-\")","v":"-"},null,null,0,{"$f":"Zwischenspeicher!E29","v":0}]

{"sheet":"Pivots","index":70,"n_rows":17,"n_cols":63,"rows_kept":17,"cut":false,"hidden":true,"merged":[]}
["Art","Kosten_V","Kosten",null,null,null,null,null,null,null,null,null,"kum. Mengenanteil","kum. Umsatzanteil","Grenzen",null,null,null,null,null,"kum. Mengenanteil","Variationskoeffizient",null,null,null,null,null,null,"kum. Mengenanteil","Nullperiodenanteil",null,null,null,null,null,null,"kum. Mengenanteil","TA Rohmaterial",null,null,null,null,null,null,"Losgröße","Kein KEP Rüstkosten","Kein KEP Lagerhaltungskosten","Kein KEP Gesamtkosten",null,"Zeilenbeschriftungen","Summe von Kein KEP Rüstkosten","Summe von Kein KEP Lagerhaltungskosten","Summe von Kein KEP Gesamtkosten",null,"Losgröße","KEP Rüstkosten","KEP Lagerhaltungskosten","KEP Gesamtkosten",null,"Zeilenbeschriftungen","Summe von KEP Rüstkosten","Summe von KEP Lagerhaltungskosten","Summe von KEP Gesamtkosten"]
["Bestand",null,null,null,"Zeilenbeschriftungen","Summe von Kosten_V","Summe von Kosten",null,null,null,null,null,null,null,null,null,"Zeilenbeschriftungen","Summe von kum. Umsatzanteil",null,null,null,null,null,null,"Zeilenbeschriftungen","Summe von Variationskoeffizient",null,null,null,null,null,null,"Zeilenbeschriftungen","Summe von Nullperiodenanteil",null,null,null,null,null,null,"Zeilenbeschriftungen","Summe von TA Rohmaterial",null,null,null,null,null,null,null,"Gesamtergebnis",null,null,null,null,null,null,null,null,null,"Gesamtergebnis"]
["Rüsten",null,null,null,"Bestand",null,null,null,null,null,null,null,null,null,null,null,"Gesamtergebnis",0,null,null,null,null,null,null,"Gesamtergebnis",null,null,null,null,null,null,null,"Gesamtergebnis",null,null,null,null,null,null,null,"Gesamtergebnis"]
["Lieferverzug",null,null,null,"Rüsten"]
["Steuerung",null,null,null,"Lieferverzug"]
[null,null,null,null,"Steuerung"]
[null,null,null,null,"Gesamtergebnis"]
[]
[]
[]
[]
["Lagerstufe","Kosten",null,null,"Zeilenbeschriftungen","Summe von Kosten"]
["Rohmateriallager",null,null,null,"Rohmateriallager"]
["Halbfabrikatslager",null,null,null,"Halbfabrikatslager"]
["Fertigwarenlager",null,null,null,"Fertigwarenlager"]
["Versandlager",null,null,null,"Versandlager"]
[null,null,null,null,"Gesamtergebnis"]